Cogmind - Beta 15 @@@ ROGUE MODE // 2025.07.11 @ 03:43:57 Player: cptwinky Result: Escaped! Performance ------------- Evolutions (9) 4500 Regions Visited (30) 6000 Robots Destroyed (388) 1940 Value Destroyed (17571) 17571 Prototype IDs (65) 1300 Alien Tech Used (3) 600 Bonus (12452) 12452 TOTAL SCORE: 44363 Bonus ------- High Alert Combat Kills 2923 Follower Combat Kills 5452 Awakened Behemoth Slayer 1000 Entered Garrisons 200 Entered DSFs 500 Network Hubs Disabled 200 Met Data Miner 300 Met Imprinter 300 Was Imprinted 300 Acquired ECA 300 Met Zhirov 300 Built Enhanced Grunts 300 A7 Reached Mainframe 300 Met R17 at Cetus 500 Win 3000 Friendly Fire -3423 Cogmind --------- Core Integrity 1600/1600 Matter 111/300 Energy 806/830 System Corruption 0% Temperature Cool (10) Movement Walking (120) Location To Epsilon Eridani Parts ------- > --- POWER (3) -------- Particle Reactor Particle Reactor Quantum Reactor > --- PROPULSION (8) --- Improved Thunder Leg Improved Thunder Leg Improved Thunder Leg Improved Thunder Leg Improved Thunder Leg Improved Thunder Leg Centrium Leg Centrium Leg > --- UTILITY (10) ----- Advanced Heat Sink Advanced Heat Sink Machine Analyzer Advanced Sensor Array Advanced Signal Interpreter Advanced Target Analyzer Backup Plating VII Graphene Brace Hacking Drone Bay (1/1) > --- WEAPON (4) ------- Enhanced Nova Cannon Hardcell Cannon Hypervelocity Mass Driver Hypervelocity Mass Driver > --- INVENTORY (5) ---- Nova Cannon Advanced Micro-nuke Launcher Advanced Remote Datajack CR-A16's Behemoth Slayer Peak State ------------ > --- POWER ------------ Particle Reactor Particle Reactor Quantum Reactor > --- PROPULSION ------- Improved Thunder Leg Improved Thunder Leg Improved Thunder Leg Improved Thunder Leg Improved Thunder Leg Improved Thunder Leg Centrium Leg Centrium Leg > --- UTILITY ---------- Advanced Heat Sink Advanced Heat Sink Machine Analyzer Advanced Sensor Array Advanced Signal Interpreter Advanced Target Analyzer Backup Plating VII Graphene Brace Hacking Drone Bay > --- WEAPON ----------- Enhanced Nova Cannon Hardcell Cannon Hypervelocity Mass Driver Hypervelocity Mass Driver > --- INVENTORY -------- Nova Cannon Advanced Micro-nuke Launcher Advanced Remote Datajack CR-A16's Behemoth Slayer [Rating: 177] Favorites ----------- Power Reinforced Deuterium Engine Engine Reinforced Deuterium Engine Power Core Hybrid Fission Core Reactor Cooled Antimatter Reactor Propulsion Light Armored Exoskeleton Treads Advanced Medium Treads Leg Light Armored Exoskeleton Wheel Wheel Hover Unit Backup Propulsion I Flight Unit Improved Surge Thruster Utility Large Storage Unit Device Advanced Heat Sink Storage Large Storage Unit Processor Advanced Signal Interpreter Hackware Authchip [R/Combat] Protection Medium Reflective Plating Weapon Improved Spread Laser Energy Gun Improved Spread Laser Energy Cannon Beam Cannon Ballistic Gun Subdweller Machine Gun Ballistic Cannon Hardcell Cannon Launcher Long-range Missile Launcher Special Weapon Mining Laser Impact Weapon Heavy Mace Slashing Weapon Ripper Piercing Weapon CR-A16's Behemoth Slayer Special Melee Weapon Improved Datajack Build | -11 -10 -10 -8 -8 -7 -7 -7 -7 -6 -6 -6 -6 -6 -6 -6 -5 -5 -5 -5 -5 -5 -4 -4 -4 -4 -3 -3 -2 -2 -1 ------- Run | Yrd Mat Sub Mat Gar Fac Low Low Zio Pro Fac Was Fac Low Low Dat Pro Fac Ext Cet Arc Hub Fac Upp Upp Zhi Pro Res Res DSF Acc Slots Evolved 18 | . . . 4 . 2 . . . . 2 . . . . . . 2 . . . . 2 . . . . 2 2 . 2 Power 2 | . . . . . . . . . . 1 . . . . . . . . . . . . . . . . . . . 1 Propulsion 6 | . . . 1 . 1 . . . . . . . . . . . 1 . . . . 1 . . . . . 2 . . Utility 8 | . . . 2 . 1 . . . . 1 . . . . . . 1 . . . . 1 . . . . 1 . . 1 Weapon 2 | . . . 1 . . . . . . . . . . . . . . . . . . . . . . . 1 . . . Parts Attached 393 | 6 7 11 17 9 30 9 7 5 5 24 4 3 2 3 . 4 12 12 9 4 10 53 7 10 2 5 104 . 15 4 Power 41 | 1 1 2 1 1 1 . . . . 4 . . . . . 1 1 1 1 2 1 7 1 1 . . 11 . 2 1 Engine 13 | 1 1 2 1 . 1 . . . . 2 . . . . . . . . . 1 1 2 1 . . . . . . . Core 6 | . . . . 1 . . . . . . . . . . . . 1 1 . . . 3 . . . . . . . . Reactor 22 | . . . . . . . . . . 2 . . . . . 1 . . 1 1 . 2 . 1 . . 11 . 2 1 Propulsion 93 | 2 . 3 6 4 9 2 1 . 1 2 . . . . . . 2 3 . . 2 19 . 2 . . 26 . 9 . Treads 29 | 2 . . 5 4 1 . . . . . . . . . . . . . . . . 6 . 2 . . 9 . . . Leg 56 | . . 3 . . 8 2 1 . 1 2 . . . . . . 2 3 . . 2 12 . . . . 11 . 9 . Wheel 5 | . . . 1 . . . . . . . . . . . . . . . . . . . . . . . 4 . . . Hover 2 | . . . . . . . . . . . . . . . . . . . . . . . . . . . 2 . . . Flight 1 | . . . . . . . . . . . . . . . . . . . . . . 1 . . . . . . . . Utility 140 | 1 3 . 6 1 11 5 1 1 3 7 2 2 2 3 . 2 7 4 5 1 5 16 3 2 2 3 40 . . 2 Device 78 | . . . 1 . 4 4 . 1 2 5 1 1 1 1 . 1 5 3 1 1 3 9 3 1 1 1 27 . . 1 Storage 6 | 1 2 . . . . . . . . . . . . . . 1 . . . . 1 1 . . . . . . . . Processor 18 | . 1 . 2 . 1 . . . . 1 . 1 . 1 . . 1 . . . 1 1 . . . 1 7 . . . Hackware 3 | . . . . . 3 . . . . . . . . . . . . . . . . . . . . . . . . . Protection 35 | . . . 3 1 3 1 1 . 1 1 1 . 1 1 . . 1 1 4 . . 5 . 1 1 1 6 . . 1 Artifact . | . . . . . . . . . . . . . . . . . . . . . . . . . . . . . . . Weapon 119 | 2 3 6 4 3 9 2 5 4 1 11 2 1 . . . 1 2 4 3 1 2 11 3 5 . 2 27 . 4 1 Energy Gun 57 | . . . 2 1 3 2 3 1 . 6 2 . . . . 1 1 3 1 . 2 7 . 4 . 2 16 . . . Energy Cannon 16 | . 2 2 . 1 . . 1 . . . . . . . . . 1 . . . . 3 1 . . . 3 . 1 1 Ballistic Gun 13 | 2 . 2 . . 3 . . . . . . . . . . . . . 1 . . . . . . . 5 . . . Ballistic Cannon 9 | . . 1 . 1 1 . . . . . . . . . . . . . . . . . 1 1 . . 1 . 3 . Launcher 9 | . . . 2 . 1 . . . . 3 . 1 . . . . . . . . . 1 . . . . 1 . . . Special Weapon 4 | . 1 . . . . . . 1 . 1 . . . . . . . . 1 . . . . . . . . . . . Impact Weapon 1 | . . . . . . . . . . . . . . . . . . . . . . . 1 . . . . . . . Slashing Weapon 4 | . . 1 . . 1 . 1 . . 1 . . . . . . . . . . . . . . . . . . . . Piercing Weapon 3 | . . . . . . . . 1 1 . . . . . . . . . . . . . . . . . 1 . . . Special Melee Weapon 3 | . . . . . . . . 1 . . . . . . . . . 1 . 1 . . . . . . . . . . Unidentified Prototypes 32 | . . . 3 . 2 1 1 2 . 7 . . . . . . . . 4 . . 5 . . 3 . 4 . . . Corrupted Parts 2 | . . . . . . . . . . . . . . . . . . . . . 1 . . 1 . . . . . . System Corruption 11 | . . . . . . . . . . . . . . . . . . . . . 10 . . 1 . . . . . . Parts Lost 122 | . 1 6 . . 3 . . . . 2 . . . . . 1 1 . 1 . 10 32 3 1 . 10 47 . 4 . Power 20 | . 1 1 . . . . . . . . . . . . . . . . . . 2 5 1 . . 2 8 . . . Propulsion 40 | . . 3 . . . . . . . . . . . . . . . . . . 3 11 . 1 . 6 15 . 1 . Utility 37 | . . . . . 1 . . . . 2 . . . . . . 1 . 1 . 2 8 2 . . 1 17 . 2 . Weapon 25 | . . 2 . . 2 . . . . . . . . . . 1 . . . . 3 8 . . . 1 7 . 1 . Highest Loss Streak 13 | . 1 3 . . 3 . . . . 1 . . . . . 1 1 . 1 . 7 13 1 1 . 9 11 . 2 . To Critical Strikes 1 | . . 1 . . . . . . . . . . . . . . . . . . . . . . . . . . . . Average Backups 12 | 2 7 11 14 14 14 13 14 14 15 14 13 14 14 14 15 14 14 15 14 15 14 12 4 4 4 4 4 5 4 4 Power . | . . 1 1 . . . . 1 1 1 1 1 1 1 1 . . . . 1 . . . . . . . . . . Propulsion 1 | 1 2 2 2 2 2 2 2 2 2 1 . . . . . . . . . . . . . . . . . . . . Utility 4 | . 1 2 4 5 5 6 5 5 6 5 5 5 5 5 6 7 7 7 7 7 6 6 2 1 2 2 1 1 1 . Weapon 4 | . 2 4 6 5 4 2 4 5 5 5 6 7 7 7 7 6 5 5 5 5 4 3 . 2 2 1 2 3 2 3 Tool/Special . | . . . . . . . . . . . . . . . . . . . . . . . . . . . . . . . Unused Backups 36 | . 3 1 4 5 2 1 . 2 . 7 . 1 . . . . 1 1 . . . 2 1 2 1 . . . . 2 Power 4 | . . . 2 1 . . . . . 1 . . . . . . . . . . . . . . . . . . . . Propulsion 5 | . . . 2 . . . . . . 2 . . . . . . . . . . . . 1 . . . . . . . Utility 10 | . 1 . . 2 . 1 . . . 2 . 1 . . . . 1 . . . . 2 . . . . . . . . Weapon 15 | . 2 1 . 2 2 . . 1 . 2 . . . . . . . 1 . . . . . 2 1 . . . . 1 Tool/Special 2 | . . . . . . . . 1 . . . . . . . . . . . . . . . . . . . . . 1 Average Slot Usage (%) 90 | . 98 99 93 100 95 81 91 90 92 89 88 93 93 93 76 92 92 93 93 94 93 81 91 99 85 63 76 82 86 87 Engine 5 | . 14 14 9 6 1 7 7 7 7 7 . . . . . . . . . . 2 . 9 6 5 3 1 . . . Reactor 3 | . . . . . . . . . . 4 13 13 13 13 13 13 6 5 5 7 8 4 . 3 5 2 6 8 8 9 Treads 7 | . 28 13 19 27 2 . . . . . . . . . . . . . . . . 2 31 30 31 15 4 17 8 . Leg 16 | . . 14 3 . 26 22 22 23 23 19 20 20 20 20 20 20 22 23 23 23 22 21 . . . . 8 8 22 32 Device 12 | . . . 1 9 13 9 14 15 15 16 13 13 12 12 13 12 16 16 17 17 17 17 22 21 21 16 20 17 15 14 Storage 6 | . 14 14 9 9 7 7 7 7 7 6 6 6 6 6 6 6 5 5 5 5 5 4 . . . . . . . . Processor 9 | . 12 14 9 9 7 7 7 7 7 8 13 13 13 13 13 13 11 11 11 11 11 9 10 10 7 6 10 13 13 12 Protection 4 | . . . 12 9 7 2 7 7 7 4 1 6 6 6 6 6 5 5 5 5 5 4 5 9 11 7 2 4 . 3 Energy Gun 12 | . . . . 5 8 23 22 14 22 19 20 19 19 19 3 19 17 16 15 16 15 8 . 2 1 9 12 . . . Energy Cannon 3 | . 11 24 7 . 1 . . . . . . . . . . . . . . . . 2 3 4 . . 1 4 4 4 Ballistic Gun 2 | . 15 . 7 10 8 . . . . . . . . . . . . . . . . . . . . . 2 8 . . Ballistic Cannon 1 | . . . 7 8 2 . . . . . . . . . . . . . . . . . 3 6 . . . . 11 12 Peak Build Rating 177 | 6 8 17 26 33 52 67 56 58 60 94 85 93 93 95 94 98 105 105 112 111 113 129 118 117 116 117 136 121 152 177 Average Rating 67 | 5 6 9 21 28 44 59 55 52 55 73 82 86 88 91 79 93 97 100 106 108 107 102 107 111 92 73 98 121 134 161 On Entrance 75 | . 6 7 16 26 32 52 56 54 55 56 77 85 88 89 94 94 94 96 105 111 110 72 103 111 114 116 21 121 121 147 Naked Turns . | . . . . . . . . . . . . . . . . . . . . . . . . . . . . . . . Heaviest Build 111 | 11 31 31 53 53 67 59 56 48 58 82 68 72 78 78 67 71 91 77 91 76 86 90 54 71 60 63 83 76 85 111 Greatest Support 228 | 40 40 40 62 62 80 65 70 70 70 70 70 70 70 70 70 70 85 100 100 100 100 180 180 180 171 171 145 112 228 228 Greatest Overweight (x) 5 | . . 1 2 . 1 . 1 . . 1 . 1 1 1 . 1 1 . . . 2 1 . . . 1 5 . 1 . Average Overweight (x) . | . . . . . . . . . . . . . . . . . . . . . . . . . . . . . . . Largest Inventory Capacity 15 | 8 15 15 15 15 15 15 15 15 15 15 15 15 15 15 15 15 15 15 15 15 15 15 5 5 5 5 5 5 5 5 Average Capacity 13 | 7 11 15 15 15 15 15 15 15 15 15 15 15 15 15 15 15 15 15 15 15 15 13 5 5 5 5 5 5 5 5 Most Carried 15 | 6 10 15 15 15 15 15 15 15 15 15 15 15 15 15 15 15 15 15 15 15 15 15 5 5 5 5 5 5 5 5 Average Carried 12 | 2 7 13 14 14 14 13 14 14 15 14 14 14 14 14 15 14 14 14 14 15 14 12 4 4 4 4 4 5 4 4 Final Capacity 15 | 8 15 15 15 15 15 15 15 15 15 15 15 15 15 15 15 15 15 15 15 15 15 5 5 5 5 5 5 5 5 5 Final Carried 15 | 6 7 14 15 14 14 13 15 15 15 15 15 14 15 15 15 15 15 15 15 15 13 5 5 5 5 5 5 5 5 4 Class Distribution -------------------- 21% | Gunner 20% | Mutant 14% | Tank 12% | Scavenger-Tank 8% | Derelict-Tank 6% | Commander-Gunner 3% | Scavenger-Skirmisher Dominant Class ---------------- Mutant | -10/Materials Mutant | -10/Subcaves Tank | -8/Materials Scavenger-Tank | -8/Garrison Tank | -7/Factory Gunner | -7/Lower Caves Tank | -7/Lower Caves Mutant | -7/Zion Derelict-Tank | -6/Proximity Caves Gunner | -6/Factory Gunner | -6/Waste Gunner | -6/Factory Gunner | -6/Lower Caves Gunner | -6/Lower Caves Mutant | -6/Data Miner Gunner | -5/Proximity Caves Derelict-Tank | -5/Factory Commander-Gunner | -5/Extension Commander-Gunner | -5/Cetus Commander-Gunner | -5/Archives Commander-Gunner | -5/Hub_04(d) Scavenger-Gunner | -4/Factory Scavenger-Mutant | -4/Upper Caves Scavenger-Tank | -4/Upper Caves Mutant | -4/Zhirov Scavenger-Tank | -3/Proximity Caves Scavenger-Tank | -3/Research Scavenger-Tank | -2/Research Scavenger-Gunner | -2/DSF Scavenger-Tank | -1/Access Resources | -11 -10 -10 -8 -8 -7 -7 -7 -7 -6 -6 -6 -6 -6 -6 -6 -5 -5 -5 -5 -5 -5 -4 -4 -4 -4 -3 -3 -2 -2 -1 ----------- Run | Yrd Mat Sub Mat Gar Fac Low Low Zio Pro Fac Was Fac Low Low Dat Pro Fac Ext Cet Arc Hub Fac Upp Upp Zhi Pro Res Res DSF Acc Matter Collected 11881 | 256 159 333 338 821 1035 2092 497 100 90 339 236 89 130 171 . 203 199 280 165 95 162 899 285 363 103 146 2026 . 175 94 Remotely . | . . . . . . . . . . . . . . . . . . . . . . . . . . . . . . . Salvage Created 18667 | 24 250 568 519 790 733 378 16 . 187 1327 150 345 309 589 . 175 990 855 316 40 66 2489 112 446 103 976 5746 . 74 94 Parts 807 | 5 8 45 40 40 54 21 1 . 16 39 . 12 6 22 . 9 37 49 12 4 2 93 6 10 . 34 235 . 3 4 Haulers Intercepted 13 | . . . 2 . 2 . . . . 2 . 1 . . . . 1 . . . . 2 . . . . 2 . . 1 Recyclers Shooed 20 | . . . . . 2 . . . . 5 . . . . . . . . . . . . . . . . 13 . . . Parts Field Recycled . | . . . . . . . . . . . . . . . . . . . . . . . . . . . . . . . Retrieved Matter . | . . . . . . . . . . . . . . . . . . . . . . . . . . . . . . . Parts Self-Destructed 145 | . . 21 . . . 17 . . 26 . . . 7 14 . 7 . . . . . . 9 13 . 31 . . . . Prevented 11 | . . . . . . . . . 8 . . . . 3 . . . . . . . . . . . . . . . . Kills | -11 -10 -10 -8 -8 -7 -7 -7 -7 -6 -6 -6 -6 -6 -6 -6 -5 -5 -5 -5 -5 -5 -4 -4 -4 -4 -3 -3 -2 -2 -1 ------- Run | Yrd Mat Sub Mat Gar Fac Low Low Zio Pro Fac Was Fac Low Low Dat Pro Fac Ext Cet Arc Hub Fac Upp Upp Zhi Pro Res Res DSF Acc Combat Hostiles Destroyed 306 | . 8 16 15 23 21 12 1 . 3 26 1 3 6 11 . 2 17 11 3 . 1 38 2 7 . 15 63 . 1 . Melee 2 | . . 1 . . . . . . . . . . . . . . . . . . . . 1 . . . . . . . Guns 136 | . 6 . 2 14 5 12 1 . 2 8 . 3 2 7 . 1 16 8 1 . 1 8 . 2 . 14 23 . . . Cannons 57 | . 2 14 7 6 6 . . . . . . . . . . . . . . . . 9 . 5 . . 7 . 1 . AOE 69 | . . . 6 1 10 . . . . 16 . . 4 4 . . . . . . . 11 . . . . 17 . . . Classes Destroyed 26 | 2 2 2 5 1 4 2 1 . . 2 1 . . 1 . . . 1 . . . 1 . . . 1 . . . . Worker 16 | 1 . . 1 . 3 . . . . 2 . 1 . . . . . . . . . 5 . . . . 3 . . . Builder 15 | . . . . . 3 . . . . . . 1 . . . . . . . . . 5 . . . . 6 . . . Tunneler 3 | 1 . . 1 . . . . . . . . . . . . . . . . . . . . . . . 1 . . . Hauler 13 | . . . 2 . 2 . . . . 2 . 1 . . . . 1 . . . . 2 . . . . 2 . . 1 Recycler 18 | . . . . . 1 . . . . 4 . . . . . . . . . . . 2 . . . . 11 . . . Mechanic 2 | . . . . . 1 . . . . . . . . . . . . . . . . . . . . 1 . . . . Operator 7 | . . . 1 . 1 . . . . . . . . . . . . 2 . 1 . 1 . . . . 1 . . . Drone 1 | . . . . . . . . . . . . . . . . . . . . . . . . . . 1 . . . . Watcher 5 | . . . 2 . 1 . . . . . . . . . . . 1 . . . . . . . . . 1 . . . Swarmer 80 | . 3 6 8 7 10 4 . . . 7 . . 2 3 . . 6 2 . . . . . . . 6 16 . . . Cutter 5 | . . . . 2 . . . . . . . . . . . . . . . . . 3 . . . . . . . . Grunt 82 | . 5 . 2 8 6 3 . . 1 6 . . 2 5 . . 6 3 . . . 15 . 5 . 5 10 . . . Brawler 9 | . . . 1 1 . 1 . . . . . . . 1 . . . . . . . 2 . 1 . 2 . . . . Duelist 3 | . . . . . . . . . . . . . . . . . . . . . . 1 . . . . 2 . . . Protector 3 | . . . . . . . . . . 2 . . . . . . . . . . . . . . . . 1 . . . Sentry 34 | . . . 4 5 2 1 . . . 1 . 2 2 1 . 1 1 4 . . . 1 . . . 1 8 . . . Specialist 8 | . . . . . . . . . . 2 . . . . . . . . . . 1 4 . . . . . . 1 . Hunter 15 | . . . . . . 1 . . . 4 . . . . . . . . . . . 6 . . . . 4 . . . Programmer 40 | . . . . . 3 1 . . 1 4 . . . 1 . . 4 . . . . 5 1 1 . . 19 . . . Heavy 1 | . . . . . . . . . . . . . . . . . . . . . . 1 . . . . . . . . Behemoth 9 | . . . . . . 1 . . 1 . . . . . . 1 . 2 . . . . 1 . . . 3 . . . Compactor 1 | . . . . . . . . . . . 1 . . . . . . . . . . . . . . . . . . . Cetus Guard 3 | . . . . . . . . . . . . . . . . . . . 3 . . . . . . . . . . . Artisan 1 | . . 1 . . . . . . . . . . . . . . . . . . . . . . . . . . . . Subdweller 10 | . . 10 . . . . . . . . . . . . . . . . . . . . . . . . . . . . Decomposer 3 | . . . . . . 2 1 . . . . . . . . . . . . . . . . . . . . . . . Packrat 1 | . . . . . . . . . . . . . . 1 . . . . . . . . . . . . . . . . Tinkerer 1 | . . . . . . . . . . . . . . 1 . . . . . . . . . . . . . . . . Thief 1 | . . . . . . . 1 . . . . . . . . . . . . . . . . . . . . . . . Thug 2 | . . . . . . . . . . . . 1 1 . . . . . . . . . . . . . . . . . Butcher 1 | . . . . . . . . . . . . . . . . . . 1 . . . . . . . . . . . . Best Kill Streak 17 | 1 2 3 7 4 6 7 1 . 1 17 1 1 4 3 . 1 6 2 2 1 1 15 1 2 . 5 10 . 1 1 Combat Bots Only 11 | . 2 3 6 4 4 7 1 . 1 11 1 1 4 3 . 1 6 2 2 . 1 8 1 2 . 5 8 . 1 . Max Kills in Single Turn 6 | 1 1 1 5 1 4 2 1 . 1 6 1 1 4 3 . 1 2 2 1 1 1 3 1 1 . 2 4 . 1 1 Gunslinging 1 | . . . . . . 1 . . . . . . . . . . 1 . . . . . . . . 1 . . . . Exploded 5 | . . . 5 1 4 . . . . 3 . . 4 3 . . . . . . . 3 . . . . 4 . . . Melee 1 | . . 1 . . . . . . . . . . . . . . . . . . . . 1 . . . . . . . Uniques/NPCs Destroyed 1 | . . . . . . . . . . . . . . . . . . . 1 . . . . . . . . . . . A7 (-5/Cetus) Combat | -11 -10 -10 -8 -8 -7 -7 -7 -7 -6 -6 -6 -6 -6 -6 -6 -5 -5 -5 -5 -5 -5 -4 -4 -4 -4 -3 -3 -2 -2 -1 -------- Run | Yrd Mat Sub Mat Gar Fac Low Low Zio Pro Fac Was Fac Low Low Dat Pro Fac Ext Cet Arc Hub Fac Upp Upp Zhi Pro Res Res DSF Acc Hostile Shots Fired 2432 | . 30 69 43 71 190 60 28 . 38 144 . 39 1 36 . 30 107 52 33 . 70 477 68 30 . 130 607 . 79 . Missed 839 | . 7 17 15 22 75 22 13 . 15 56 . 16 1 15 . 10 32 14 12 . 19 194 23 7 . 32 187 . 35 . Hits 1593 | . 23 52 28 49 115 38 15 . 23 88 . 23 . 21 . 20 75 38 21 . 51 283 45 23 . 98 420 . 44 . Melee 16 | . . . . . . 1 1 . . . . . . . . . . . . . . 3 . . . 8 3 . . . Projectile 1577 | . 23 52 28 49 115 37 14 . 23 88 . 23 . 21 . 20 75 38 21 . 51 280 45 23 . 90 417 . 44 . AOE 7 | . . 2 . . 1 . . . . . . . . . . . . . . . 1 3 . . . . . . . . Critical Strikes 82 | . . 2 2 4 4 1 . . 2 1 . . . 1 . 2 1 2 4 . 7 16 . 3 . 10 19 . 1 . Actively Blocked 40 | . . . 1 . . . . . . . . . . . . . . . . . . 6 . 3 . 10 19 . 1 . Part Disruptions 7 | . . . . . . . . . . . . . 1 . . . 1 . . . . 3 1 . . . 1 . . . Damage Taken 31259 | . 258 1005 385 470 1279 622 92 . 519 1339 . 377 178 308 . 340 948 688 486 . 2060 6219 917 469 . 1978 9248 . 1074 . Core 2882 | . 8 236 81 18 126 78 27 . 76 67 . 54 12 19 . 39 66 19 59 . 214 639 34 39 . 235 677 . 59 . Absorbed by Shields 1445 | . . . . 135 200 . . . . . . . . 14 . 93 229 280 108 . 36 . . . . 350 . . . . Redirected to Shielding 161 | . . . 26 . . . . . . . . . . . . . . . . . . . . . . 135 . . . . Ignored by Resistances 913 | . . . . 12 165 78 8 . 19 54 . . . . . . 140 . 103 . . . . . . . 334 . . . Regen/Repaired (Parts) 1066 | . . . . . 93 . . . . 367 25 18 85 . . . 478 . . . . . . . . . . . . . Core Remaining (%) 63 | 100 . 2 . 82 . . . . 56 . . . . . . 77 . . . . 64 . . . . 17 42 . 95 100 Volleys Fired 883 | 2 21 49 27 61 85 27 4 . 6 44 6 14 6 20 . 2 39 30 26 5 11 107 7 20 . 33 212 . 6 13 Largest 4 | 2 2 2 3 3 3 3 3 . 3 3 3 3 3 3 . 3 3 3 3 1 3 3 2 3 . 3 4 . 3 1 Hottest 402 | 40 120 120 123 142 225 225 175 . 180 180 60 121 121 121 . 121 243 243 243 81 237 281 160 248 . 282 402 . 208 120 Shots Fired 1993 | 4 41 96 77 132 172 82 14 . 18 100 18 39 14 54 . 4 115 79 54 5 33 173 13 51 . 89 491 . 12 13 Gun 1454 | 4 30 . 25 83 106 82 14 . 18 90 18 39 12 51 . 4 115 79 54 5 33 89 . 12 . 89 398 . 4 . Cannon 468 | . 10 94 50 40 59 . . . . . . . . . . . . . . . . 61 13 39 . . 81 . 8 13 Launcher 64 | . . . 2 9 7 . . . . 6 . . 2 3 . . . . . . . 23 . . . . 12 . . . Special 7 | . 1 2 . . . . . . . 4 . . . . . . . . . . . . . . . . . . . . Kinetic 430 | 4 30 1 50 99 111 . . . . . . . . . . . . . . . . . 7 18 . . 104 . 6 . Thermal 1382 | . 11 95 25 23 42 82 14 . 18 90 18 39 12 51 . 4 115 79 54 5 33 109 6 33 . 89 316 . 6 13 Explosive 57 | . . . . . 7 . . . . 10 . . 2 3 . . . . . . . 23 . . . . 12 . . . Electromagnetic 124 | . . . 2 10 12 . . . . . . . . . . . . . . . . 41 . . . . 59 . . . Robot Hit Streak 29 | 2 13 17 10 12 8 11 5 . 8 20 8 20 29 21 . 6 14 20 18 8 17 22 6 12 . 13 15 . 4 2 Robot Miss Streak 7 | 1 1 1 4 6 7 5 5 . 3 2 1 1 . 1 . . 3 1 2 . 2 4 2 3 . 4 5 . 1 2 Penetration Max 1 | . . . . . . . . . . . . . . . . . . . . . . . . . . . 1 . . . Secondary Targets 31 | . 1 . . . . 3 . . . 3 . 1 . . . . 5 3 1 . . 3 . . . 6 5 . . . Max Gunslinging Chain 2 | . 1 . . . . 1 . . . 1 . 1 . . . . 2 1 1 . . 1 . . . 1 1 . . . Shots Hit Robots 1383 | 2 33 79 46 68 101 72 9 3 13 75 15 33 9 43 . 5 82 87 53 6 28 109 11 28 1 60 303 . 6 3 Core Hits 765 | 3 13 23 26 29 57 90 5 . 8 72 4 11 13 26 . 1 35 24 21 2 3 103 . 12 . 28 153 . 2 1 Critical Kills 29 | . 1 1 . 1 . . . . . 1 . 2 . 3 . 1 1 1 . 1 . 1 . . . . 15 . . . Critical Parts Destroyed 27 | . . . . . . . . . . . . 3 . 2 . . 4 4 . . . . . 1 . . 12 . 1 . Critical Strikes 125 | . 1 1 1 4 4 . 1 . . 8 1 6 1 6 . 2 13 13 8 1 1 7 1 4 . 1 39 . 1 . Burn 46 | . . . . 1 2 . 1 . . 7 1 . . 1 . 1 8 6 5 . . 4 . . . . 9 . . . Meltdown 3 | . . 1 . . . . . . . . . . . . . . . . . . . 1 . . . . 1 . . . Destroy 61 | . 1 . . 1 . . . . . 1 . 6 1 5 . 1 5 7 1 1 1 . . 1 . . 28 . 1 . Blast 7 | . . . 1 2 2 . . . . . . . . . . . . . . . . . 1 1 . . . . . . Corrupt 3 | . . . . . . . . . . . . . . . . . . . . . . 2 . . . . 1 . . . Impale 5 | . . . . . . . . . . . . . . . . . . . 2 . . . . 2 . 1 . . . . Melee Attacks 104 | . . 10 2 . . . 5 4 5 2 . . 1 . . 1 . 23 19 1 6 4 3 3 1 2 12 . . . Impact 1 | . . . . . . . . . . . . . . . . . . . . . . . 1 . . . . . . . Slashing 17 | . . 10 2 . . . 5 . . . . . . . . . . . . . . . . . . . . . . . Piercing 62 | . . . . . . . . 1 5 2 . . 1 . . 1 . 3 19 . 6 4 2 3 1 2 12 . . . Sneak Attacks 36 | . . 3 . . . . . 3 . . . . . . . . . 20 7 1 . . . . . 2 . . . . Combat Hostiles 2 | . . 1 . . . . . . . . . . . . . . . 1 . . . . . . . . . . . . Follow-up Attacks . | . . . . . . . . . . . . . . . . . . . . . . . . . . . . . . . Damage Inflicted 47152 | 25 432 1502 1207 1859 3792 1523 184 . 316 5071 322 641 623 1462 . 86 2110 1569 1454 118 711 7148 440 1164 . 1880 11223 . 171 119 Guns 23532 | 23 263 . 274 1022 1377 1521 184 . 253 1428 322 641 166 875 . 86 2099 1569 1077 118 658 1628 . 218 . 1718 5995 . 17 . Cannons 9007 | . 167 1318 685 613 1145 . . . . . . . . . . . . . . . . 1658 393 749 . . 2006 . 154 119 Explosions 13159 | . . . 185 213 1247 . . . . 3476 . . 457 587 . . . . . . . 3849 . . . . 3145 . . . Melee 1061 | . . 184 37 . . . . . 63 . . . . . . . . . 377 . . . 47 197 . 156 . . . . Ramming 234 | 2 2 . 26 11 23 2 . . . 8 . . . . . . 11 . . . 53 13 . . . 6 77 . . . Kinetic 5123 | 23 263 . 767 1336 1622 . . . . . . . . . . . . . . . . . 209 346 . . 468 . 89 . Thermal 24957 | . 167 1318 192 272 754 1521 184 . 253 1428 322 641 166 875 . 86 2099 1569 1077 118 658 2182 184 621 . 1718 6351 . 82 119 Explosive 12212 | . . . . . 1190 . . . . 3476 . . 457 587 . . . . . . . 3664 . . . . 2838 . . . Electromagnetic 3406 | . . . 185 240 203 . . . . . . . . . . . . . . . . 1289 . . . . 1489 . . . Impact 47 | . . . . . . . . . . . . . . . . . . . . . . . 47 . . . . . . . Slashing 380 | . . 184 37 . . . . . . 159 . . . . . . . . . . . . . . . . . . . . Piercing 793 | . . . . . . . . . 63 . . . . . . . . . 377 . . . . 197 . 156 . . . . Highest Corruption 40 | . . . . . 4 1 1 1 . . . 2 3 3 3 3 4 5 1 1 17 6 9 10 10 10 40 . . . Average Corruption 4 | . . . . . 2 1 1 1 . . . 2 2 3 3 3 2 3 1 1 4 4 7 9 10 10 16 . . . Corruption Purged 9 | . . . . . 4 . . . . . . . . . . . . 4 . 1 . . . . . . . . . . Corruption Blocked 4 | . . . . . . . . . . . . . . . . . . . . . . . . . . . 4 . . . Effects 389 | . . . . . 15 27 12 1 . . . 8 20 19 4 23 13 24 2 1 1 19 22 43 7 31 97 . . . Message Errors 89 | . . . . . 3 6 3 . . . . 3 5 4 . 7 1 5 1 . . 3 5 10 . 9 24 . . . Matter Fused 83 | . . . . . 3 5 2 . . . . 2 4 2 2 6 2 9 . 1 . 4 3 9 2 5 22 . . . Heat Flow Errors 45 | . . . . . 4 4 1 1 . . . . 3 4 . 1 3 2 . . 1 3 4 4 . 3 7 . . . Energy Discharges 43 | . . . . . 1 3 1 . . . . 1 . 3 . 4 1 2 . . . 2 5 4 4 5 7 . . . Parts Rejected 1 | . . . . . . . . . . . . . . . . . . 1 . . . . . . . . . . . . Parts Fused 3 | . . . . . . . . . . . . . . . . . . 1 . . . 1 . . 1 . . . . . Data Loss (minor) 53 | . . . . . 2 6 2 . . . . 1 5 6 1 4 3 1 . . . 1 2 5 . 3 11 . . . Data Loss (major) 22 | . . . . . 2 1 . . . . . . . . 1 1 1 2 1 . . 1 1 4 . 2 5 . . . Misfires 13 | . . . . . . 1 2 . . . . . 2 . . . 1 1 . . . . . 3 . . 3 . . . Alerts 9 | . . . . . . 1 1 . . . . . 1 . . . 1 . . . . . 1 3 . 1 . . . . Misdirections 4 | . . . . . . . . . . . . . . . . . . . . . . . . . . . 4 . . . Weapon Failures 24 | . . . . . . . . . . . . 1 . . . . . . . . . 4 1 1 . 3 14 . . . Overload Shots 2 | . . . . . . . . . . . . . . . . . . . . . . 2 . . . . . . . . Overflow Damage 1159 | . . 46 . 8 149 . . . . 62 . . . 8 . . . . 25 . . 140 85 112 . 123 359 . 5 37 Projectiles 418 | . . . . 8 98 . . . . . . . . . . . . . . . . 57 47 36 . . 130 . 5 37 Explosions 433 | . . . . . 51 . . . . 62 . . . 8 . . . . . . . 83 . . . . 229 . . . Melee 308 | . . 46 . . . . . . . . . . . . . . . . 25 . . . 38 76 . 123 . . . . Knockbacks 23 | . . . 1 2 13 . . . . . . . . . . . . . . . 1 . 1 4 . . 1 . . . Impact 3 | . . . . . 1 . . . . . . . . . . . . . . . 1 . . . . . 1 . . . Kinetic 18 | . . . 1 2 11 . . . . . . . . . . . . . . . . . 1 3 . . . . . . Secondary 2 | . . . . . 1 . . . . . . . . . . . . . . . . . . 1 . . . . . . Self-Inflicted Damage 500 | . . . 3 14 . . . . . 32 . . . . . . . . . . . 201 . . . 2 248 . . . Shots 12 | . . . . 1 . . . . . 1 . . . . . . . . . . . 5 . . . . 5 . . . Rammed 24 | 1 1 . 6 3 . . . . . . . . . . . . . . . . . 2 . . . 3 8 . . . Targets Rammed 45 | 2 1 . 7 3 4 1 . . . 1 . . . . . . 2 . . . 5 4 . . . 3 12 . . . Kicked 19 | . . . . . 4 1 . . . 1 . . . . . . 2 . . . 5 2 . . . . 4 . . . Crushed 2 | 1 . . 1 . . . . . . . . . . . . . . . . . . . . . . . . . . . Highest Temperature 559 | . 135 48 329 273 238 306 182 127 263 214 . 60 226 217 . 212 152 175 237 4 36 277 267 415 . 302 559 . . . Average Temperature 86 | . 43 15 81 73 77 109 97 68 83 86 . 25 111 70 . 117 19 22 84 2 8 58 130 135 . 106 142 . . . Received Heat Transfer 5018 | . 96 219 171 172 467 90 24 . 406 273 . 45 9 107 . 512 106 171 36 . 90 803 192 159 . 300 498 . 72 . Effects 19 | . . . . . . 2 . . . . . . . . . . . . . . . . . 4 . 3 10 . . . Shutdowns 5 | . . . . . . . . . . . . . . . . . . . . . . . . 1 . . 4 . . . Energy Bleed 2 | . . . . . . . . . . . . . . . . . . . . . . . . 1 . . 1 . . . Interference 7 | . . . . . . 2 . . . . . . . . . . . . . . . . . . . 3 2 . . . Matter Decay 2 | . . . . . . . . . . . . . . . . . . . . . . . . 2 . . . . . . Short Circuit 1 | . . . . . . . . . . . . . . . . . . . . . . . . . . . 1 . . . Damage (minor) 1 | . . . . . . . . . . . . . . . . . . . . . . . . . . . 1 . . . Damage (major) 1 | . . . . . . . . . . . . . . . . . . . . . . . . . . . 1 . . . Siege Activations . | . . . . . . . . . . . . . . . . . . . . . . . . . . . . . . . Martial Activations . | . . . . . . . . . . . . . . . . . . . . . . . . . . . . . . . Shielding Activations . | . . . . . . . . . . . . . . . . . . . . . . . . . . . . . . . Robots Disrupted . | . . . . . . . . . . . . . . . . . . . . . . . . . . . . . . . Combat Hostiles . | . . . . . . . . . . . . . . . . . . . . . . . . . . . . . . . Robots Corrupted 15 | . . . . 2 . . . . . . . . . . . . . . . . . 7 . . . . 6 . . . Combat Hostiles 13 | . . . . 2 . . . . . . . . . . . . . . . . . 6 . . . . 5 . . . Parts Fried 28 | . . . 2 1 1 . . . . . . . 6 . . . . . . . . 8 . . . . 10 . . . Impact Corruptions 1 | . . . . . . . . . . . . . . . . . . . . . . . 1 . . . . . . . Robots Melted 22 | . . 1 . . . . . . . 3 1 . . . . . 1 1 2 . . 4 . . . 1 8 . . . Combat Hostiles 21 | . . 1 . . . . . . . 2 1 . . . . . 1 1 2 . . 4 . . . 1 8 . . . Parts Melted 125 | . 2 4 . . 1 1 . . 1 11 . 9 2 1 . . 14 5 8 . . 11 . 1 . 10 43 . 1 . Heat Transferred 41354 | . 333 2775 407 518 1144 1265 410 . 535 3330 703 1147 296 1591 . 222 3737 2868 1943 185 1054 3458 148 703 . 2220 10177 . 74 111 Parts Sabotaged . | . . . . . . . . . . . . . . . . . . . . . . . . . . . . . . . Parts Stolen 1 | . . . . . . . 1 . . . . . . . . . . . . . . . . . . . . . . . Parts Stripped . | . . . . . . . . . . . . . . . . . . . . . . . . . . . . . . . Power Chain Reactions 3 | . . . 1 . 1 . . . . . . . . . . . . . . . . . . . . . 1 . . . Alert | -11 -10 -10 -8 -8 -7 -7 -7 -7 -6 -6 -6 -6 -6 -6 -6 -5 -5 -5 -5 -5 -5 -4 -4 -4 -4 -3 -3 -2 -2 -1 ------- Run | Yrd Mat Sub Mat Gar Fac Low Low Zio Pro Fac Was Fac Low Low Dat Pro Fac Ext Cet Arc Hub Fac Upp Upp Zhi Pro Res Res DSF Acc Maximum Alert Level 4 | . . . 1 4 4 . . . . 3 1 4 . . . . 1 2 2 1 2 4 . . . . 4 3 2 1 Low Security (%) 35 | 100 100 . 83 14 . . . . . 24 78 14 . . . . 78 39 . 68 38 48 . . . . 16 . . . Level 1 22 | . . . 16 5 . . . . . 28 21 23 . . . . 21 30 69 31 49 7 . . . . 44 . . 100 Level 2 16 | . . . . 25 37 . . . . 13 . 7 . . . . . 30 30 . 11 6 . . . . 19 . 100 . Level 3 18 | . . . . 38 50 . . . . 33 . 26 . . . . . . . . . 31 . . . . 9 100 . . Level 4 6 | . . . . 15 12 . . . . . . 28 . . . . . . . . . 5 . . . . 10 . . . Level 5 . | . . . . . . . . . . . . . . . . . . . . . . . . . . . . . . . High Security . | . . . . . . . . . . . . . . . . . . . . . . . . . . . . . . . Max Security . | . . . . . . . . . . . . . . . . . . . . . . . . . . . . . . . Peak Influence 1460 | 5 64 . 280 1271 1131 . . . . 944 324 1329 . . . . 316 628 468 242 437 1183 . . . . 1460 820 623 387 Initial 820 | . 3 . . 160 667 . . . . . 324 . . . . . . 133 297 145 39 93 . . . . 300 820 615 372 Average 436 | . 11 . 79 745 829 . . . . 447 135 682 . . . . 145 307 387 176 226 441 . . . . 474 820 618 329 Influence Increases 16944 | 10 294 140 455 1151 1320 285 25 . 388 1499 47 1738 389 370 . 50 790 1003 387 197 924 2034 165 195 5 325 2645 . 47 66 Destroy 0b10 Robot/C 8300 | . 160 120 300 580 660 240 20 . 200 840 . 480 280 220 . 40 460 500 160 80 300 940 40 140 . 280 1240 . 20 . Destroy 0b10 Robot/NC 565 | 10 . . 35 . 65 . . . . 60 . 45 . 5 . . 10 25 10 10 25 110 . 5 5 10 130 . . 5 Destroy Leader 1536 | . 40 20 78 40 158 30 . . 50 156 . 126 . 40 . 10 84 34 . . 94 228 20 20 . 20 286 . . 2 Allied During Kill 2259 | . . . . 47 265 . 5 . 138 51 . 471 109 . . . 43 373 170 90 383 109 . . . . . . . 5 Successful Hack 264 | . 34 . 8 14 42 . . . . 24 . 5 . . . . 88 . . . . 24 . . . . 25 . . . Select Force Hacks 20 | . . . . . 20 . . . . . . . . . . . . . . . . . . . . . . . . . Disable Machine 660 | . 15 . 30 . . . . . . 90 . 90 . . . . . 30 15 15 45 120 . . . . 180 . . 30 Anti-Garrison Action 1150 | . . . . 400 . . . . . 200 . 400 . . . . . . . . . . . . . . 150 . . . Destroy Structure 1080 | . . . 4 55 80 . . . . 63 47 121 . . . . . 26 32 2 32 308 . . . . 274 . 12 24 Advance Influence 300 | . . . . . . . . . . . . . . . . . . . . . . . . . . . 300 . . . Partial Spotted 135 | . . . . . . . . . . . . . . . . . . . . . 15 120 . . . . . . . . Lose Combat Pursuer 675 | . 45 . . 15 30 15 . . . 15 . . . 105 . . 105 15 . . 30 75 105 30 . 15 60 . 15 . Influence Decreases 16676 | 5 291 148 208 127 1486 1155 260 . 388 573 972 493 972 623 410 50 518 743 555 449 844 1051 784 668 88 325 1186 639 245 420 Entered New Map 5239 | . 2 4 . 87 604 410 46 . . . 602 1 462 127 410 . . 139 235 219 73 99 436 106 83 . . 639 205 250 Time Decay 8847 | 5 289 134 208 . 652 745 214 . 288 513 270 402 470 486 . 50 448 474 230 150 351 518 318 522 5 229 706 . . 170 Lost Part 1120 | . . 10 . . 30 . . . . 20 . . . . . . 10 . 10 . 100 294 30 10 . 96 470 . 40 . Lost Ally 1470 | . . . . 40 200 . . . 100 40 100 90 40 10 . . 60 130 80 80 320 140 . 30 . . 10 . . . Squads Dispatched 86 | . 1 . 1 . 9 . . . . 10 . 9 . . . . 10 1 . . 4 17 . . . 1 21 . 1 1 Investigation 15 | . . . 1 . 2 . . . . 3 . 3 . . . . 2 . . . . 1 . . . . 3 . . . Extermination 27 | . . . . . 5 . . . . 3 . 2 . . . . 3 . . . 1 3 . . . . 9 . . 1 Reinforcement 25 | . 1 . . . 2 . . . . 2 . 2 . . . . 2 1 . . 3 10 . . . . 1 . 1 . Assault 5 | . . . . . . . . . . . . . . . . . . . . . . . . . . 1 4 . . . Garrison 14 | . . . . . . . . . . 2 . 2 . . . . 3 . . . . 3 . . . . 4 . . . Intercept . | . . . . . . . . . . . . . . . . . . . . . . . . . . . . . . . Searches Triggered . | . . . . . . . . . . . . . . . . . . . . . . . . . . . . . . . Data Miner Redirects 8 | . . . . . . . . . . . . . . . . . 1 . . . . 1 . . . . 6 . . . Construction Impeded 8 | . . . . . 1 . . . . 1 . 1 . . . . . 1 . . . 4 . . . . . . . . Haulers Reinforced 2 | . . . . . . . . . . . . . . . . . 1 . . . . 1 . . . . . . . . Active Scanning Responses . | . . . . . . . . . . . . . . . . . . . . . . . . . . . . . . . Cargo Convoy Interrupts 1 | . . . . . . . . . . 1 . . . . . . . . . . . . . . . . . . . . Stealth | -11 -10 -10 -8 -8 -7 -7 -7 -7 -6 -6 -6 -6 -6 -6 -6 -5 -5 -5 -5 -5 -5 -4 -4 -4 -4 -3 -3 -2 -2 -1 --------- Run | Yrd Mat Sub Mat Gar Fac Low Low Zio Pro Fac Was Fac Low Low Dat Pro Fac Ext Cet Arc Hub Fac Upp Upp Zhi Pro Res Res DSF Acc Distress Signals 18 | . 2 . . . 1 . . . . 5 . 1 . . . . 2 1 2 . 1 1 . . . . 2 . . . Communications Jammed 8 | . . . . . . . . . . . . . . . . . . . . . 6 2 . . . . . . . . Distress Signals 6 | . . . . . . . . . . . . . . . . . . . . . 4 2 . . . . . . . . Times Spotted 527 | . 18 17 20 26 40 13 4 . 10 51 3 17 9 13 . 2 31 26 10 7 19 63 8 8 . 18 83 . 9 2 Peak Tracking Total 10 | . 4 3 6 4 5 9 3 . 3 9 3 5 7 3 . 1 10 5 5 . 6 7 3 5 . 7 7 . 7 1 Tactical Retreats 32 | . 2 . . 1 2 1 . . . 1 . . . 3 . . 4 1 . . 2 4 3 2 . 1 4 . 1 . Traps | -11 -10 -10 -8 -8 -7 -7 -7 -7 -6 -6 -6 -6 -6 -6 -6 -5 -5 -5 -5 -5 -5 -4 -4 -4 -4 -3 -3 -2 -2 -1 ------- Run | Yrd Mat Sub Mat Gar Fac Low Low Zio Pro Fac Was Fac Low Low Dat Pro Fac Ext Cet Arc Hub Fac Upp Upp Zhi Pro Res Res DSF Acc Traps Triggered 20 | . . . . 4 2 . . . . 1 . 1 1 . . . 1 3 . . . . . . . . 5 . 2 . Indirectly . | . . . . . . . . . . . . . . . . . . . . . . . . . . . . . . . Trap Hack Attempts . | . . . . . . . . . . . . . . . . . . . . . . . . . . . . . . . Triggered . | . . . . . . . . . . . . . . . . . . . . . . . . . . . . . . . Disarmed . | . . . . . . . . . . . . . . . . . . . . . . . . . . . . . . . Reprogrammed . | . . . . . . . . . . . . . . . . . . . . . . . . . . . . . . . Reused 1 | . . . . . . . . . . . . . . 1 . . . . . . . . . . . . . . . . Traps Extracted . | . . . . . . . . . . . . . . . . . . . . . . . . . . . . . . . Installed 1 | . . . . . . . . . . . . . . 1 . . . . . . . . . . . . . . . . Triggered 1 | . . . . . . . . . . . . . . 1 . . . . . . . . . . . . . . . . Most Traps Carried 1 | . . 1 . . . . . . . . . . 1 1 . . . . . . . . . . . . . . . . Machines | -11 -10 -10 -8 -8 -7 -7 -7 -7 -6 -6 -6 -6 -6 -6 -6 -5 -5 -5 -5 -5 -5 -4 -4 -4 -4 -3 -3 -2 -2 -1 ---------- Run | Yrd Mat Sub Mat Gar Fac Low Low Zio Pro Fac Was Fac Low Low Dat Pro Fac Ext Cet Arc Hub Fac Upp Upp Zhi Pro Res Res DSF Acc Machines Disabled 48 | . 1 . 2 1 . . 1 . . 6 . 6 1 . . . . 2 1 1 3 8 . . . . 13 . . 2 Max in Single Turn 2 | . 1 . 1 . . . 1 . . 2 . . 1 . . . . . 1 . . 2 . . . . 1 . . 1 Garrison Access 5 | . . . . . . . . . . 2 . 2 . . . . . . . . . . . . . . 1 . . . Garrison Relay 1 | . . . . 1 . . . . . . . . . . . . . . . . . . . . . . . . . . Network Hub 1 | . . . . . . . . . . . . . . . . . . . . . 1 . . . . . . . . . Machines Repaired . | . . . . . . . . . . . . . . . . . . . . . . . . . . . . . . . Machines Dismantled 1 | . . . . . . . . . . . . . . . . . . . 1 . . . . . . . . . . . Machines Sabotaged . | . . . . . . . . . . . . . . . . . . . . . . . . . . . . . . . Overloaded Fab Kills . | . . . . . . . . . . . . . . . . . . . . . . . . . . . . . . . Hacking | -11 -10 -10 -8 -8 -7 -7 -7 -7 -6 -6 -6 -6 -6 -6 -6 -5 -5 -5 -5 -5 -5 -4 -4 -4 -4 -3 -3 -2 -2 -1 --------- Run | Yrd Mat Sub Mat Gar Fac Low Low Zio Pro Fac Was Fac Low Low Dat Pro Fac Ext Cet Arc Hub Fac Upp Upp Zhi Pro Res Res DSF Acc Machines Accessed 77 | . 7 . 5 4 8 1 1 . . 8 . 6 . 2 3 . 10 . 1 . . 6 . 2 4 . 6 1 . 2 Terminals 21 | . 7 . 3 4 5 . . . . . . . . . . . . . 1 . . . . . . . . 1 . . Fabricators 11 | . . . . . 2 . . . . 3 . . . . . . 4 . . . . . . . . . 1 . . 1 Repair Stations 12 | . . . . . 1 . . . . 3 . 1 . . . . 2 . . . . 2 . . . . 2 . . 1 Recycling Units 12 | . . . 1 . . . . . . . . 3 . . . . 3 . . . . 4 . . . . 1 . . . Scanalyzers 1 | . . . . . . . . . . . . . . . . . 1 . . . . . . . . . . . . . Garrison Access 7 | . . . 1 . . . . . . 2 . 2 . . . . . . . . . . . . . . 2 . . . Total Hacks 231 | . 25 . 15 10 26 1 1 . . 19 . 14 . 5 27 . 26 . 1 . . 17 . 4 17 . 15 1 . 7 Successful 127 | . 11 . 4 3 14 1 1 . . 9 . 6 . 5 27 . 10 . . . . 7 . 4 17 . 6 1 . 1 Failed 104 | . 14 . 11 7 12 . . . . 10 . 8 . . . . 16 . 1 . . 10 . . . . 9 . . 6 Catastrophic 22 | . 1 . 2 1 3 . . . . 1 . 1 . . . . 4 . 1 . . 5 . . . . 1 . . 2 Database Lockouts . | . . . . . . . . . . . . . . . . . . . . . . . . . . . . . . . Manual 140 | . 23 . 8 1 11 . . . . 19 . 8 . . . . 15 12 1 . 12 18 . . . . 2 . . 10 Terminals 57 | . 25 . 8 10 12 . . . . . . . . . . . . . 1 . . . . . . . . 1 . . Fabricators 33 | . . . . . 12 . . . . 7 . . . . . . 7 . . . . . . . . . 2 . . 5 Repair Stations 36 | . . . . . 2 . . . . 8 . 3 . . . . 9 . . . . 5 . . . . 7 . . 2 Recycling Units 33 | . . . 2 . . . . . . . . 8 . . . . 8 . . . . 12 . . . . 3 . . . Scanalyzers 2 | . . . . . . . . . . . . . . . . . 2 . . . . . . . . . . . . . Garrison Access 15 | . . . 5 . . . . . . 4 . 3 . . . . . . . . . . . . . . 3 . . . Terminal Hacks 68 | . 5 . 2 3 2 1 1 . . . . . . 5 27 . . . . . . . . 4 17 . . 1 . . Record 18 | . . . . . . . . . . . . . . 4 6 . . . . . . . . 3 5 . . . . . Part Schematic 16 | . . . . . . . . . . . . . . . 12 . . . . . . . . . 4 . . . . . Robot Schematic 6 | . . . . . . . . . . . . . . . 6 . . . . . . . . . . . . . . . Robot Analysis 8 | . 3 . 1 . . . . . . . . . . . . . . . . . . . . . 4 . . . . . Prototype ID Bank 7 | . . . . . . . . . . . . . . . 3 . . . . . . . . . 4 . . . . . Open Door 5 | . . . . 1 . 1 1 . . . . . . 1 . . . . . . . . . 1 . . . . . . Open DSF 1 | . . . . . . . . . . . . . . . . . . . . . . . . . . . . 1 . . Branch Access Points 1 | . . . 1 . . . . . . . . . . . . . . . . . . . . . . . . . . . Emergency Access Points 1 | . . . . 1 . . . . . . . . . . . . . . . . . . . . . . . . . . Fabricator Index 1 | . . . . . 1 . . . . . . . . . . . . . . . . . . . . . . . . . Locate Traps 3 | . 2 . . . 1 . . . . . . . . . . . . . . . . . . . . . . . . . Patrol Navigation 1 | . . . . 1 . . . . . . . . . . . . . . . . . . . . . . . . . . Fabricator Hacks 13 | . . . . . 8 . . . . 2 . . . . . . . . . . . . . . . . 2 . . 1 Network Status 4 | . . . . . 1 . . . . 1 . . . . . . . . . . . . . . . . 1 . . 1 Load Schematic 4 | . . . . . 3 . . . . 1 . . . . . . . . . . . . . . . . . . . . Build 5 | . . . . . 4 . . . . . . . . . . . . . . . . . . . . . 1 . . . Repair Station Hacks 14 | . . . . . . . . . . 3 . 2 . . . . 5 . . . . 1 . . . . 3 . . . Scan Component 8 | . . . . . . . . . . 2 . 1 . . . . 4 . . . . 1 . . . . . . . . Repair 3 | . . . . . . . . . . 1 . 1 . . . . 1 . . . . . . . . . . . . . Refit 3 | . . . . . . . . . . . . . . . . . . . . . . . . . . . 3 . . . Recycling Unit Hacks 8 | . . . . . . . . . . . . 1 . . . . 2 . . . . 4 . . . . 1 . . . Retrieve Components 8 | . . . . . . . . . . . . 1 . . . . 2 . . . . 4 . . . . 1 . . . Scanalyzer . | . . . . . . . . . . . . . . . . . . . . . . . . . . . . . . . Garrison Access Hacks 2 | . . . 1 . . . . . . 1 . . . . . . . . . . . . . . . . . . . . Unlock Access 1 | . . . 1 . . . . . . . . . . . . . . . . . . . . . . . . . . . Seal Access 1 | . . . . . . . . . . 1 . . . . . . . . . . . . . . . . . . . . Unauthorized Hacks 22 | . 6 . 1 . 4 . . . . 3 . 3 . . . . 3 . . . . 2 . . . . . . . . Terminals 9 | . 6 . 1 . 2 . . . . . . . . . . . . . . . . . . . . . . . . . Botnet 4 | . 1 . 1 . 2 . . . . . . . . . . . . . . . . . . . . . . . . . Skim 5 | . 5 . . . . . . . . . . . . . . . . . . . . . . . . . . . . . Fabricators 5 | . . . . . 1 . . . . 2 . . . . . . 2 . . . . . . . . . . . . . Liberate 2 | . . . . . . . . . . 1 . . . . . . 1 . . . . . . . . . . . . . Haulers 2 | . . . . . . . . . . 1 . . . . . . 1 . . . . . . . . . . . . . Download 1 | . . . . . 1 . . . . . . . . . . . . . . . . . . . . . . . . . Repair Stations 1 | . . . . . 1 . . . . . . . . . . . . . . . . . . . . . . . . . Patch 1 | . . . . . 1 . . . . . . . . . . . . . . . . . . . . . . . . . Recycling Units 4 | . . . . . . . . . . . . 1 . . . . 1 . . . . 2 . . . . . . . . Reject 4 | . . . . . . . . . . . . 1 . . . . 1 . . . . 2 . . . . . . . . Scanalyzers . | . . . . . . . . . . . . . . . . . . . . . . . . . . . . . . . Garrison Access 3 | . . . . . . . . . . 1 . 2 . . . . . . . . . . . . . . . . . . Jam 3 | . . . . . . . . . . 1 . 2 . . . . . . . . . . . . . . . . . . Data Cores Recovered 1 | . . . . . 1 . . . . . . . . . . . . . . . . . . . . . . . . . Used . | . . . . . . . . . . . . . . . . . . . . . . . . . . . . . . . Hacking Detections 51 | . 7 . 5 4 7 . . . . 6 . 4 . . . . 8 . 1 . . 4 . . . . 3 . . 2 Full Trace Events 11 | . 1 . 1 3 . . . . . 2 . 1 . . . . 1 . . . . 1 . . . . 1 . . . Feedback Events 1 | . . . . . . . . . . . . . . . . . 1 . . . . . . . . . . . . . Corruption 1 | . . . . . . . . . . . . . . . . . 1 . . . . . . . . . . . . . Feedback Blocked . | . . . . . . . . . . . . . . . . . . . . . . . . . . . . . . . Robot Schematics Acquired 11 | . . . . . 1 . . 4 . . . . . . 6 . . . . . . . . . . . . . . . Robots Built 13 | . . . . . 12 . . . . . . . . . . . . . . . . . . . . . 1 . . . Authchips 3 | . . . . . 3 . . . . . . . . . . . . . . . . . . . . . . . . . Time 688 | . . . . . 501 . . . . . . . . . . . . . . . . . . . . . 187 . . . Total Robot Build Rating 49 | . . . . . 42 . . . . . . . . . . . . . . . . . . . . . 7 . . . Part Schematics Acquired 42 | . . . . . . . . 15 . . . . . . 12 . . . . . 11 . . . 4 . . . . . Parts Built . | . . . . . . . . . . . . . . . . . . . . . . . . . . . . . . . Authchips . | . . . . . . . . . . . . . . . . . . . . . . . . . . . . . . . Time . | . . . . . . . . . . . . . . . . . . . . . . . . . . . . . . . Total Part Build Rating . | . . . . . . . . . . . . . . . . . . . . . . . . . . . . . . . Parts Repaired 3 | . . . . . . . . . . 1 . 1 . . . . 1 . . . . . . . . . . . . . Time 144 | . . . . . . . . . . 22 . 100 . . . . 22 . . . . . . . . . . . . . Parts Recycled . | . . . . . . . . . . . . . . . . . . . . . . . . . . . . . . . Recycled Matter . | . . . . . . . . . . . . . . . . . . . . . . . . . . . . . . . Retrieved Matter . | . . . . . . . . . . . . . . . . . . . . . . . . . . . . . . . Retrieved Components 24 | . . . . . . . . . . . . 3 . . . . 3 . . . . 8 . . . . 10 . . . Parts Scanalyzed . | . . . . . . . . . . . . . . . . . . . . . . . . . . . . . . . Part Schematics Acquired . | . . . . . . . . . . . . . . . . . . . . . . . . . . . . . . . Parts Damaged . | . . . . . . . . . . . . . . . . . . . . . . . . . . . . . . . Bothacking | -11 -10 -10 -8 -8 -7 -7 -7 -7 -6 -6 -6 -6 -6 -6 -6 -5 -5 -5 -5 -5 -5 -4 -4 -4 -4 -3 -3 -2 -2 -1 ------------ Run | Yrd Mat Sub Mat Gar Fac Low Low Zio Pro Fac Was Fac Low Low Dat Pro Fac Ext Cet Arc Hub Fac Upp Upp Zhi Pro Res Res DSF Acc Used RIF Installer . | . . . . . . . . . . . . . . . . . . . . . . . . . . . . . . . Robots Hacked 5 | . . . . . . . . 3 . . . . . . . . . 1 . 1 . . . . . . . . . . Non-combat 1 | . . . . . . . . . . . . . . . . . . . . 1 . . . . . . . . . . Combat 4 | . . . . . . . . 3 . . . . . . . . . 1 . . . . . . . . . . . . Robot Hacks Applied 5 | . . . . . . . . 3 . . . . . . . . . 1 . 1 . . . . . . . . . . parse_system 4 | . . . . . . . . 3 . . . . . . . . . 1 . . . . . . . . . . . . check_alert 1 | . . . . . . . . . . . . . . . . . . . . 1 . . . . . . . . . . Relay Couplers Released 18 | . . . . 6 4 . . . . 5 . . . . . . . . . . . . . . . . 3 . . . Machine Destruction 8 | . . . . 3 . . . . . 2 . . . . . . . . . . . . . . . . 3 . . . Programmers 10 | . . . . 3 4 . . . . 3 . . . . . . . . . . . . . . . . . . . . Fabnet Peak Effective % . | . . . . . . . . . . . . . . . . . . . . . . . . . . . . . . . Robots Rewired 20 | . . . . . . 2 . . . . . . . . . . . 18 . . . . . . . . . . . . Allies Hacked 7 | . . . . . 3 . . . . . . . . . . . . . . . 3 . . . . . 1 . . . Hacks Repelled . | . . . . . . . . . . . . . . . . . . . . . . . . . . . . . . . Allies | -11 -10 -10 -8 -8 -7 -7 -7 -7 -6 -6 -6 -6 -6 -6 -6 -5 -5 -5 -5 -5 -5 -4 -4 -4 -4 -3 -3 -2 -2 -1 -------- Run | Yrd Mat Sub Mat Gar Fac Low Low Zio Pro Fac Was Fac Low Low Dat Pro Fac Ext Cet Arc Hub Fac Upp Upp Zhi Pro Res Res DSF Acc Total Allies 110 | . . . . 2 12 3 . 6 . . 20 . . . . . 4 40 5 . . 11 . . . . 1 . . 6 Largest Group 30 | . . . . 2 12 3 3 9 9 2 20 13 5 1 . . 4 30 28 24 21 5 . . . . 1 . . 6 Highest-Rated Group 1303 | . . . . 62 300 145 145 339 339 135 733 548 218 26 . . 112 1213 1303 1120 960 411 . . . . 33 . . 588 Highest-Rated Ally 159 | . . . . 31 30 99 99 97 97 97 50 50 50 26 . . 28 159 143 96 96 96 . . . . 33 . . 115 Zionite Dispatches 12 | . . . . . . . . . . . . . . . . . 1 4 . . . 5 . . . . . . . 2 Light 4 | . . . . . . . . . . . . . . . . . . 2 . . . 1 . . . . . . . 1 Fire 1 | . . . . . . . . . . . . . . . . . 1 . . . . . . . . . . . . . Hacker 4 | . . . . . . . . . . . . . . . . . . 1 . . . 2 . . . . . . . 1 Thermal Resupply 1 | . . . . . . . . . . . . . . . . . . . . . . 1 . . . . . . . . Defense Resupply 1 | . . . . . . . . . . . . . . . . . . . . . . 1 . . . . . . . . Infowar Resupply 1 | . . . . . . . . . . . . . . . . . . 1 . . . . . . . . . . . . Initial Warlord ECA Mod 8 | . . . . . 2 2 2 2 . . . . . . . . . . . . . . . . . . . . . . Total Orders 52 | . . . . . 7 2 . . . 17 . 1 . . . . . 1 . . 5 2 5 5 . . 4 . . 3 STAY 14 | . . . . . 6 1 . . . 3 . . . . . . . . . . 3 . . . . . 1 . . . ROAM 4 | . . . . . . . . . . 2 . . . . . . . . . . 1 . . . . . 1 . . . FOLLOW 4 | . . . . . 1 1 . . . 1 . . . . . . . . . . . . . . . . 1 . . . DROP 2 | . . . . . . . . . . . . . . . . . . 1 . . . 1 . . . . . . . . EXPLORE 19 | . . . . . . . . . . 9 . . . . . . . . . . . . 5 5 . . . . . . RETURN 9 | . . . . . . . . . . 2 . 1 . . . . . . . . 1 1 . . . . 1 . . 3 Ally Attacks 845 | . . . . 36 71 . 7 . 58 42 69 97 46 . . . 27 84 94 22 108 82 . . . . . . . 2 Total Damage 25904 | . . . . 551 1765 . 234 . 1427 2597 3741 3734 1232 . . . 487 2363 1534 497 2540 3129 . . . . . . . 73 Kills 169 | . . . . 6 13 . 2 . 7 21 7 28 8 . . . 6 19 9 5 21 17 . . . . . . . . Allies Corrupted 8 | . . . . . 1 . . . 1 . . 1 . . . . . . . . 4 . . . . . 1 . . . Allies Melted 1 | . . . . . . . . . . . . . . . . . . . . . 1 . . . . . . . . . Intel | -11 -10 -10 -8 -8 -7 -7 -7 -7 -6 -6 -6 -6 -6 -6 -6 -5 -5 -5 -5 -5 -5 -4 -4 -4 -4 -3 -3 -2 -2 -1 ------- Run | Yrd Mat Sub Mat Gar Fac Low Low Zio Pro Fac Was Fac Low Low Dat Pro Fac Ext Cet Arc Hub Fac Upp Upp Zhi Pro Res Res DSF Acc Active Infowar (turns) 13304 | . . . . . . . . . . 1271 . . 989 1183 105 1038 630 381 . . 578 840 514 1432 222 502 3110 4 158 347 Sensors 5755 | . . . . . . . . . . . . . . . . . 623 122 . . . 419 282 1432 222 502 2018 . . 135 IFF 4593 | . . . . . . . . . . 1271 . . 989 1183 105 1038 7 . . . . . . . . . . . . . Terrain 330 | . . . . . . . . . . . . . . . . . . . . . . . . . . . 330 . . . Seismic 825 | . . . . . . . . . . . . . . . . . . . . . . . 514 171 . . 140 . . . Machine Analysis 3811 | . . . . . . . . . . . . . . . . . . . . . . . . . . 192 3110 4 158 347 Jamming 1673 | . . . . . . . . . . . . . . . . . . 259 . . 578 836 . . . . . . . . Robot Analysis Total 8 | . 3 . 1 . . . . . . . . . . . . . . . . . . . . . 4 . . . . . Derelict Logs Recovered 13 | . . 1 . . . 1 2 1 2 . . . 1 1 . 2 . . . . . . 1 1 . . . . . . Drone Launches 21 | . . . . . . . . . . 3 . 1 . . . . . . . . 1 1 6 5 . . 1 . . 3 Drone Recoveries 16 | . . . . . . . . . . 1 . 1 . . . . . . . . 1 1 6 2 . . 1 . . 3 Zionite Intel Received 8 | . . . . . . . . . . 3 . . . . . . . . . . 3 1 . . . . . . . 1 Main Access 1 | . . . . . . . . . . . . . . . . . . . . . 1 . . . . . . . . . Branch Access 1 | . . . . . . . . . . . . . . . . . . . . . . 1 . . . . . . . . Component Stockpiles 1 | . . . . . . . . . . 1 . . . . . . . . . . . . . . . . . . . . Prototype Stockpiles 1 | . . . . . . . . . . 1 . . . . . . . . . . . . . . . . . . . . Prototype Schematics 1 | . . . . . . . . . . . . . . . . . . . . . 1 . . . . . . . . . Unaware Analyses 1 | . . . . . . . . . . . . . . . . . . . . . 1 . . . . . . . . . Trap Installations 1 | . . . . . . . . . . 1 . . . . . . . . . . . . . . . . . . . . Active Garrisons 1 | . . . . . . . . . . . . . . . . . . . . . . . . . . . . . . 1 Exploration | -11 -10 -10 -8 -8 -7 -7 -7 -7 -6 -6 -6 -6 -6 -6 -6 -5 -5 -5 -5 -5 -5 -4 -4 -4 -4 -3 -3 -2 -2 -1 ------------- Run | Yrd Mat Sub Mat Gar Fac Low Low Zio Pro Fac Was Fac Low Low Dat Pro Fac Ext Cet Arc Hub Fac Upp Upp Zhi Pro Res Res DSF Acc Turns Passed 38427 | 106 1420 3503 958 1930 2413 3897 1659 1433 1339 1926 595 1136 1192 1272 105 1122 1234 1200 495 302 847 1599 716 1440 222 747 3110 4 158 347 Spaces Moved 22410 | 53 592 1350 544 1017 1516 2834 1099 1010 890 890 408 769 849 877 79 742 740 649 182 116 417 869 463 766 135 671 1590 3 85 205 Core 840 | 2 . . . . . . . . . . . . . . . . . . . . . 155 . . . 451 232 . . . Treads 5176 | 51 592 1257 247 1017 87 . . . . . . . . . . . . . . . . 31 463 766 135 220 305 3 2 . Legs 15584 | . . 93 55 . 1429 2834 1099 1010 890 890 408 769 849 877 79 742 740 649 182 116 417 651 . . . . 517 . 83 205 Wheels 547 | . . . 242 . . . . . . . . . . . . . . . . . . . . . . . 305 . . . Hover 231 | . . . . . . . . . . . . . . . . . . . . . . . . . . . 231 . . . Flight 32 | . . . . . . . . . . . . . . . . . . . . . . 32 . . . . . . . . Fastest Speed 30 | 50 160 130 120 155 125 130 130 133 133 126 126 126 126 126 126 126 125 125 125 125 125 30 145 145 150 50 50 160 116 120 Average Speed 138 | 155 160 233 141 159 129 130 131 133 133 166 126 126 128 128 126 128 125 125 125 125 127 118 145 147 150 83 125 160 137 120 Slowest Speed 360 | 160 160 240 155 160 216 133 225 133 133 216 126 209 209 209 126 209 209 125 125 125 260 190 145 150 150 151 360 160 186 120 Overloaded Moves . | . . . . . . . . . . . . . . . . . . . . . . . . . . . . . . . Propulsion Burnouts . | . . . . . . . . . . . . . . . . . . . . . . . . . . . . . . . Robots Hopped . | . . . . . . . . . . . . . . . . . . . . . . . . . . . . . . . Potential Cave-ins 3 | . . . . . . . . . . . . . . . . . . . . . . . . . . . 3 . . . Cave-ins Triggered . | . . . . . . . . . . . . . . . . . . . . . . . . . . . . . . . Teleports 1 | . . . . . . . . . . . . . . . . . . . . . . . . . . . 1 . . . Exploration Rate (%) 63 | 4 98 74 42 91 29 98 98 89 94 34 93 17 92 92 68 96 24 77 65 74 42 28 87 79 60 92 49 1 85 7 Regions Visited 30 Branch Regions 17 Pre-discovered Areas 8 | . . . . . . 1 . 2 . . . . . . 1 . . . . . . . . 1 3 . . . . . Known Exits Taken 24 | . 1 . 1 . 1 1 1 1 1 . . 1 1 1 1 1 1 1 1 1 1 1 1 1 1 1 1 1 . . Unknown Exits Taken 2 | 1 . 1 . . . . . . . . . . . . . . . . . . . . . . . . . . . . Scrap Searched 40 | . . 4 . . . 2 7 3 3 . . . 4 3 . 5 . . . . . . 4 4 . 1 . . . . Spaces Dug 157 | . . 2 2 . 8 . 3 . 2 38 . . 1 15 . . . . 8 . 4 6 1 3 . . 57 . 3 4 Terrain Destroyed 636 | . . 2 3 . 95 . 3 . 2 55 . . 29 62 . . . . 8 . 5 148 5 18 . 24 166 . 4 7 Melee 25 | . . 2 . . . . 3 . 2 2 . . 1 . . . . . 8 . 4 2 1 . . . . . . . Projectile 107 | . . . 1 . 5 . . . . . . . . . . . . . . . 1 19 4 18 . 24 24 . 4 7 AOE 503 | . . . 2 . 90 . . . . 53 . . 28 62 . . . . . . . 127 . . . . 141 . . . Terrain Rammed . | . . . . . . . . . . . . . . . . . . . . . . . . . . . . . . . Walls Destroyed . | . . . . . . . . . . . . . . . . . . . . . . . . . . . . . . . Machines Disabled . | . . . . . . . . . . . . . . . . . . . . . . . . . . . . . . . Actions | -11 -10 -10 -8 -8 -7 -7 -7 -7 -6 -6 -6 -6 -6 -6 -6 -5 -5 -5 -5 -5 -5 -4 -4 -4 -4 -3 -3 -2 -2 -1 --------- Run | Yrd Mat Sub Mat Gar Fac Low Low Zio Pro Fac Was Fac Low Low Dat Pro Fac Ext Cet Arc Hub Fac Upp Upp Zhi Pro Res Res DSF Acc Total 28008 | 69 1025 1580 671 1220 1810 2981 1302 1099 1020 1252 479 908 935 977 84 904 954 968 377 270 693 1290 488 1029 154 788 2270 2 117 292 Wait 3332 | 1 390 135 34 99 120 80 163 59 107 224 52 115 72 61 . 140 137 174 112 134 227 161 1 203 . 53 215 . . 63 Move 22380 | 53 591 1349 543 1014 1515 2833 1098 1009 889 890 407 768 848 876 78 741 739 648 181 115 416 869 462 765 134 670 1589 2 84 204 Hop . | . . . . . . . . . . . . . . . . . . . . . . . . . . . . . . . Pick Up 154 | 6 5 16 10 9 17 9 6 4 1 10 5 1 1 3 . 3 6 4 2 1 . 16 3 8 1 . 6 . 1 . Fast Attach 313 | 6 3 . 12 3 16 6 9 6 2 22 1 2 . 2 3 2 8 5 7 5 8 40 5 8 8 2 110 . 9 3 Attach 78 | . 1 6 5 . 4 . 1 1 . 4 2 . . . . 1 1 . 2 . 3 24 4 3 1 5 6 . 1 3 Detach 77 | . 2 . 7 2 3 . 1 2 . 5 1 . . . . . . 1 4 1 3 17 2 2 2 6 13 . 1 2 Swap 240 | . 4 11 8 11 22 6 4 4 6 19 2 5 7 9 . 9 10 18 8 3 9 17 . 3 . 6 31 . 5 3 Drop 333 | . 7 4 16 15 24 17 11 10 4 30 3 3 . 5 3 5 12 9 8 5 5 32 1 14 7 8 64 . 10 1 Fire 883 | 2 21 49 27 61 85 27 4 . 6 44 6 14 6 20 . 2 39 30 26 5 11 107 7 20 . 33 212 . 6 13 Melee 104 | . . 10 2 . . . 5 4 5 2 . . 1 . . 1 . 23 19 1 6 4 3 3 1 2 12 . . . Ram 4 | . . . 1 . . . . . . . . . . . . . . . . . . . . . . 3 . . . . Kick 19 | . . . . . 4 1 . . . 1 . . . . . . 2 . . . 5 2 . . . . 4 . . . Crush 20 | 1 1 . 6 3 . . . . . . . . . . . . . . . . . 1 . . . . 8 . . . Escape Stasis 10 | . . . . 3 . . . . . . . . . . . . . 7 . . . . . . . . . . . . Rewire 51 | . . . . . . 2 . . . . . . . . . . . 49 . . . . . . . . . . . . Trap 1 | . . . . . . . . . . . . . . 1 . . . . . . . . . . . . . . . . Miscellaneous 9 | . . . . . . . . . . 1 . . . . . . . . 8 . . . . . . . . . . . Route ------- -11/Scrapyard -10/Materials (discovered 6 exits: [*Mat x3] / [*Min x2] / *Sub) -10/Subcaves -8/Materials (discovered 4 exits: Fac / *Sto x2 / Gar) -8/Garrison (discovered 3 exits: *Fac x3) -7/Factory (discovered 2 exits: *Fac / *Low) -7/Lower Caves -7/Lower Caves (discovered 2 exits: *Fac / *Zio) -7/Zion (discovered 2 exits: Dee / *Pro) -6/Proximity Caves -6/Factory (discovered 2 exits: *Fac / *Low) -6/Waste -6/Factory (discovered 2 exits: *Fac / *Low) -6/Lower Caves -6/Lower Caves (discovered 2 exits: *Fac / *Dat) -6/Data Miner -5/Proximity Caves -5/Factory (discovered 5 exits: *Fac x3 / Upp / *Ext) -5/Extension (discovered 2 exits: *Fac / *Cet) -5/Cetus (discovered 2 exits: *Fac / *Arc) -5/Archives (discovered 3 exits: *Fac / *Hub x2) -5/Hub_04(d) (discovered 4 exits: *Fac x4) -4/Factory (discovered 2 exits: *Upp x2) -4/Upper Caves -4/Upper Caves (discovered 2 exits: *Res / *Zhi) -4/Zhirov -3/Proximity Caves -3/Research -2/Research -2/DSF -1/Access (discovered 2 exits: *Sur / Com) To Epsilon Eridani History --------- Turn | Location | Event 52 | -11/Scrapyard | Discovered new exit (range 14) 107 | -11/Scrapyard | Entered Materials 234 | -10/Materials | Discovered new exit (range 16) 300 | -10/Materials | Build established: Mutant 380 | -10/Materials | Discovered new exit (range 5) 474 | -10/Materials | Discovered new exit (range 9) 628 | -10/Materials | Discovered new exit (range 4) 737 | -10/Materials | Discovered new exit (range 16) 1151 | -10/Materials | Learned 2 Storage zone layouts 1204 | -10/Materials | Identified exit to Subcaves 1300 | -10/Materials | Loaded intel: 11 interactive machine locations 1333 | -10/Materials | Learned 4 Subcaves zone layouts 1374 | -10/Materials | Learned location of 1 exit from Recycling 1527 | -10/Materials | Entered Subcaves 1528 | -10/Subcaves | Approached by a straggling Scientist 1529 | -10/Subcaves | Ambushed by Subdwellers from Twisted Machinery 1852 | -10/Subcaves | Shifting Twisted Machinery released Ripper 3488 | -10/Subcaves | Core integrity fell below 50% 3645 | -10/Subcaves | Shifting Twisted Machinery released Piercing Trap 3654 | -10/Subcaves | Shifting Twisted Machinery released Mak. Leg 3658 | -10/Subcaves | Learned location of 1 exit from Materials 3881 | -10/Subcaves | Discovered new exit (range 8) 4034 | -10/Subcaves | Disturbed a concealed Subdweller 4850 | -10/Subcaves | Ambushed by Subdweller buried in earth 4860 | -10/Subcaves | Core integrity fell below 20% 4910 | -10/Subcaves | Lost 3 parts (2n1w) 5030 | -10/Subcaves | Entered Materials 5030 | -8/Materials | Evolved 4 slots: Propulsion x1, Utility x2, Weapon x1 5031 | -8/Materials | Identified exit to Factory 5230 | -8/Materials | Discovered new exit (range 8) 5444 | -8/Materials | Build established: Subdweller-Gunner 5776 | -8/Materials | Build established: Tank 5873 | -8/Materials | Identified exit to Storage 5972 | -8/Materials | Identified exit to Garrison 5988 | -8/Materials | Entered Garrison 6270 | -8/Garrison | Rescued a captive Derelict 6272 | -8/Garrison | Rescued a captive Derelict 6376 | -8/Garrison | Triggered checkpoint 6574 | -8/Garrison | Discovered exit to Factory (range 13) 6589 | -8/Garrison | Build established: Scavenger-Tank 6600 | -8/Garrison | Triggered checkpoint 6633 | -8/Garrison | Garrison Relay disabled 6832 | -8/Garrison | Discovered exit to Factory (range 12) 6874 | -8/Garrison | Triggered checkpoint 6987 | -8/Garrison | Triggered checkpoint 7138 | -8/Garrison | Discovered exit to Factory (range 15) 7564 | -8/Garrison | Attempted to access garrison exit controls, blocked by remote lockdown 7732 | -8/Garrison | Attempted to access garrison exit controls, blocked by remote lockdown 7918 | -8/Garrison | Entered Factory 7918 | -7/Factory | Evolved 2 slots: Propulsion x1, Utility x1 8223 | -7/Factory | Discovered new exit (range 13) 8371 | -7/Factory | Build established: Tank 8485 | -7/Factory | Fabricated B-36 Bruiser? 8528 | -7/Factory | Lost 3 parts (1u2w) 8655 | -7/Factory | Fabricated L-41 Fighter? 8812 | -7/Factory | Fabricated L-41 Fighter (x3) 8952 | -7/Factory | Fabricated L-41 Fighter (x3) 8971 | -7/Factory | Build established: Commander-Gunner 9212 | -7/Factory | P-60 Hacker assimilated allied Fighter 4f 9652 | -7/Factory | Build established: Commander-Tank 9654 | -7/Factory | Discovered new exit (range 7) 9720 | -7/Factory | P-60 Hacker assimilated allied Fighter 4d 9748 | -7/Factory | Lost 3 allies 9929 | -7/Factory | Lost 3 allies 10189 | -7/Factory | Build established: Tank 10329 | -7/Factory | Identified exit to Lower Caves 10331 | -7/Factory | Entered Lower Caves 10338 | -7/Lower Caves | Met a Warlord Commander 10339 | -7/Lower Caves | Learned location of Warlord (-5) 10340 | -7/Lower Caves | Warlord Commander delivered Encrypted Comm Array 10345 | -7/Lower Caves | Found Encrypted Comm Array 11010 | -7/Lower Caves | Discovered new exit (range 15) 11231 | -7/Lower Caves | Attracted the attention of an 0b10 outpost 11285 | -7/Lower Caves | Destroyed 7 combat bots 11500 | -7/Lower Caves | Spotted B-75 Beast 11535 | -7/Lower Caves | Destroyed B-75 Beast 11802 | -7/Lower Caves | Learned 4 Factory zone layouts 11817 | -7/Lower Caves | Found Prototype Device 11817 | -7/Lower Caves | Identified Heart of Steel 12123 | -7/Lower Caves | Build established: Gunner 13909 | -7/Lower Caves | Heart of Steel transformed into Warbot 14160 | -7/Lower Caves | Murdered Warlord Statue 14227 | -7/Lower Caves | Identified exit to Lower Caves 14228 | -7/Lower Caves | Entered another Lower Caves area 14228 | -7/Lower Caves | Accompanied by 3 allies (Warbot) 14319 | -7/Lower Caves | Discovered new exit (range 8) 14329 | -7/Lower Caves | Identified exit to Factory 14474 | -7/Lower Caves | Build established: Tank 14668 | -7/Lower Caves | Learned Factory trap positions 14892 | -7/Lower Caves | Found DCF Scrap (13 items) 15049 | -7/Lower Caves | Found Alien Artifact 15049 | -7/Lower Caves | Identified Dimensional Node Initializer 15049 | -7/Lower Caves | Initialized slip node 15246 | -7/Lower Caves | Discovered new exit (range 15) 15248 | -7/Lower Caves | Learned Factory stockpile data 15445 | -7/Lower Caves | Attracted the attention of an 0b10 checkpoint 15540 | -7/Lower Caves | Build established: Derelict-Tank 15725 | -7/Lower Caves | Identified exit to Zion 15887 | -7/Lower Caves | Entered Zion 15887 | -7/Zion | Accompanied by 3 allies (Warbot) 15948 | -7/Zion | System corruption cleaned by Quarantine Array 16112 | -7/Zion | Discovered new exit (range 11) 16178 | -7/Zion | Build established: Mutant 16204 | -7/Zion | Given A8's code to call for help 16292 | -7/Zion | Found Prototype Special Weapon 16292 | -7/Zion | Identified RU-N14's Throwing Claymores 16301 | -7/Zion | Found RU-N14's Throwing Claymores 16387 | -7/Zion | Gained Derelict followers 16492 | -7/Zion | Found CR-A16's Pointy Stick 16634 | -7/Zion | Met Imprinter 16661 | -7/Zion | Imprinted 16663 | -7/Zion | Declared Zion's savior 16792 | -7/Zion | Identified exit to Deep Caves 17073 | -7/Zion | Given the Hacking Drone Bay 17074 | -7/Zion | Found Prototype Device 17074 | -7/Zion | Identified Hacking Drone Bay 17265 | -7/Zion | Identified exit to Proximity Caves 17320 | -7/Zion | Entered Proximity Caves 17320 | -6/Proximity Caves | Accompanied by 9 allies (Warbot) 17361 | -6/Proximity Caves | Learned Factory garrison access intel 17547 | -6/Proximity Caves | Build established: Derelict-Tank 17619 | -6/Proximity Caves | Learned 8 Factory zone layouts 17891 | -6/Proximity Caves | Spotted B-75 Beast 17914 | -6/Proximity Caves | Revealed the true nature of CR-A16's Pointy Stick 17918 | -6/Proximity Caves | Destroyed B-75 Beast 18179 | -6/Proximity Caves | Attracted the attention of an 0b10 checkpoint 18215 | -6/Proximity Caves | Lost 3 allies 18540 | -6/Proximity Caves | Discovered exit to Factory (range 15) 18659 | -6/Proximity Caves | Entered Factory 18659 | -6/Factory | Accompanied by 2 allies (Warbot) 18659 | -6/Factory | Evolved 2 slots: Power x1, Utility x1 18661 | -6/Factory | Loaded intel: 76 trap records 18663 | -6/Factory | Loaded intel: 4 garrison access locations 18917 | -6/Factory | Retrieved Zion intel report: Trap Installations 19061 | -6/Factory | Garrison activated, responded to threat 19317 | -6/Factory | Discovered new exit (range 66) 19499 | -6/Factory | Retrieved Zion intel report: Component Stockpiles 19540 | -6/Factory | Repaired Lgt. Armored Exoskeleton 19561 | -6/Factory | Build established: Tank 19640 | -6/Factory | Garrison activated, responded to threat 19664 | -6/Factory | Retrieved Zion intel report: Prototype Stockpiles 19823 | -6/Factory | Cargo convoy interrupted 19876 | -6/Factory | Destroyed 11 combat bots 20033 | -6/Factory | Terminal network hard line cut 20114 | -6/Factory | Discovered new exit (range 16) 20221 | -6/Factory | Build established: Gunner 20585 | -6/Factory | Sucked down chute 20585 | -6/Factory | Entered Waste 20586 | -6/Waste | Met a frightened Derelict 20605 | -6/Waste | Warlord forces began an assault 20658 | -6/Waste | Spotted C-40 Crusher 20699 | -6/Waste | Spotted C-40 Crusher 20701 | -6/Waste | Spotted C-40 Crusher 20708 | -6/Waste | Lost 6 allies 20717 | -6/Waste | Destroyed C-40 Crusher 20719 | -6/Waste | Allies destroyed C-40 Crusher 20769 | -6/Waste | Spotted C-40 Crusher 20774 | -6/Waste | Allies destroyed C-40 Crusher 20818 | -6/Waste | Discovered new exit (range 14) 20849 | -6/Waste | Found Prototype Processor 20873 | -6/Waste | Identified Exp. Targeting Computer 21148 | -6/Waste | Identified exit to Factory 21180 | -6/Waste | Entered Factory 21180 | -6/Factory | Accompanied by 13 allies 21424 | -6/Factory | Discovered new exit (range 8) 21573 | -6/Factory | Garrison activated, responded to threat 21630 | -6/Factory | Lost 3 allies 21640 | -6/Factory | Repaired Broken Exp. Targeting Computer 21944 | -6/Factory | Discovered new exit (range 13) 21946 | -6/Factory | Garrison activated, responded to threat 22072 | -6/Factory | Identified exit to Factory 22303 | -6/Factory | Identified exit to Lower Caves 22316 | -6/Factory | Entered Lower Caves 22316 | -6/Lower Caves | Accompanied by 5 allies 22322 | -6/Lower Caves | Encountered a Warlord checkpoint 22340 | -6/Lower Caves | Learned 8 Factory zone layouts 22603 | -6/Lower Caves | Attracted the attention of an 0b10 outpost 23300 | -6/Lower Caves | Discovered new exit (range 5) 23305 | -6/Lower Caves | Identified exit to Lower Caves 23508 | -6/Lower Caves | Entered another Lower Caves area 23508 | -6/Lower Caves | Accompanied by 1 ally 23561 | -6/Lower Caves | P-60 Hacker assimilated allied R3-6X7(r) 23681 | -6/Lower Caves | Discovered exit to Factory (range 8) 23753 | -6/Lower Caves | Learned 4 Factory zone layouts 23771 | -6/Lower Caves | Learned Factory emergency access door positions 23771 | -6/Lower Caves | Learned Armory terminal intel 24718 | -6/Lower Caves | Attracted the attention of an 0b10 checkpoint 24767 | -6/Lower Caves | Discovered new exit (range 4) 24768 | -6/Lower Caves | Encountered a Warlord checkpoint 24778 | -6/Lower Caves | Identified exit to Data Miner 24780 | -6/Lower Caves | Entered Data Miner 24780 | -6/Data Miner | Discovered new exit (range 6) 24787 | -6/Data Miner | Identified exit to Proximity Caves 24806 | -6/Data Miner | Met Data Miner 24830 | -6/Data Miner | Learned location of Section 7 (-2) 24830 | -6/Data Miner | Acquired the access code to Warlord's prototype stash 24848 | -6/Data Miner | Received God Mode back door access code from Data Miner 24885 | -6/Data Miner | Entered Proximity Caves 24966 | -5/Proximity Caves | Attracted the attention of an 0b10 checkpoint 25170 | -5/Proximity Caves | Spotted B-75 Beast 25201 | -5/Proximity Caves | Learned location of 1 exit from Factory 25228 | -5/Proximity Caves | Destroyed B-75 Beast 25263 | -5/Proximity Caves | Learned Factory security intel 25803 | -5/Proximity Caves | Received a Behemoth hack from an annoying Tinkerer 25913 | -5/Proximity Caves | Discovered exit to Factory (range 8) 26007 | -5/Proximity Caves | Entered Factory 26007 | -5/Factory | Evolved 2 slots: Propulsion x1, Utility x1 26008 | -5/Factory | Identified exit to Factory 26009 | -5/Factory | Identified exit to Extension 26009 | -5/Factory | Identified exit to Upper Caves 26074 | -5/Factory | Repaired Lgt. Armored Exoskeleton 26302 | -5/Factory | Build established: Derelict-Tank 26530 | -5/Factory | Garrison activated, responded to threat 26880 | -5/Factory | Discovered exit to Factory (range 6) 26895 | -5/Factory | Zion Fire squad teleported in 27135 | -5/Factory | Build established: Skirmisher 27155 | -5/Factory | Incoming investigation squad redirected 27223 | -5/Factory | Terminal network hard line cut 27241 | -5/Factory | Entered Extension 27241 | -5/Extension | Accompanied by 1 ally 27281 | -5/Extension | Zion Hacker squad teleported in 27331 | -5/Extension | Rescued a captive Derelict 27332 | -5/Extension | Rescued a captive Derelict 27380 | -5/Extension | Lost 4 allies 27503 | -5/Extension | Rescued A7 27524 | -5/Extension | Zion Infowar Resupply teleported in 27800 | -5/Extension | Spotted B-75 Beast 27811 | -5/Extension | Spotted B-75 Beast 27815 | -5/Extension | Destroyed B-75 Beast 27828 | -5/Extension | Destroyed B-75 Beast 27868 | -5/Extension | Lost 4 allies 27889 | -5/Extension | Rescued a captive Derelict 27890 | -5/Extension | Rescued a captive Derelict 27917 | -5/Extension | Rescued a captive Derelict 27917 | -5/Extension | Rescued a captive Derelict 28000 | -5/Extension | Zion Light squad teleported in 28005 | -5/Extension | Zion Light squad teleported in 28039 | -5/Extension | Rescued a captive Derelict 28039 | -5/Extension | Rescued a captive Derelict 28119 | -5/Extension | Rescued a captive Derelict 28120 | -5/Extension | Rescued a captive Derelict 28137 | -5/Extension | Build established: Commander-Gunner 28156 | -5/Extension | Rescued a captive Derelict 28228 | -5/Extension | Rescued a captive Derelict 28266 | -5/Extension | Discovered exit to Factory (range 10) 28268 | -5/Extension | Discovered new exit (range 6) 28326 | -5/Extension | Identified exit to Cetus 28441 | -5/Extension | Entered Cetus 28441 | -5/Cetus | Accompanied by 28 allies (A7) 28446 | -5/Cetus | Acquired a Cetus Manufacturing Module code from A7 28457 | -5/Cetus | Spotted Cetus Guard 28458 | -5/Cetus | Spotted Cetus Guard 28461 | -5/Cetus | Spotted Cetus Guard 28469 | -5/Cetus | Allies destroyed Cetus Guard 28469 | -5/Cetus | Spotted Cetus Guard 28470 | -5/Cetus | Destroyed Cetus Guard 28483 | -5/Cetus | Destroyed Cetus Guard 28486 | -5/Cetus | Found Prototype Protection 28486 | -5/Cetus | Identified Zio. Weapon Casing 28488 | -5/Cetus | Allies destroyed Cetus Guard 28521 | -5/Cetus | Lost 4 allies 28551 | -5/Cetus | Started Cetus Manufacturing Module 28576 | -5/Cetus | Manufactured an Enhanced Grunt 28589 | -5/Cetus | Escorted A7 to Cetus Mainframe 28601 | -5/Cetus | Manufactured an Enhanced Grunt 28607 | -5/Cetus | Discovered new exit (range 15) 28626 | -5/Cetus | Manufactured an Enhanced Grunt 28630 | -5/Cetus | Spotted Cetus Guard 28630 | -5/Cetus | Spotted Cetus Guard 28633 | -5/Cetus | Spotted Cetus Guard 28633 | -5/Cetus | Spotted Cetus Guard 28635 | -5/Cetus | Allies destroyed Cetus Guard 28638 | -5/Cetus | Destroyed Cetus Guard 28649 | -5/Cetus | Allies destroyed Cetus Guard 28651 | -5/Cetus | Manufactured an Enhanced Grunt 28654 | -5/Cetus | Allies destroyed Cetus Guard 28669 | -5/Cetus | Discovered exit to Factory (range 15) 28675 | -5/Cetus | Scared off Revision 17 28676 | -5/Cetus | Manufactured an Enhanced Grunt 28725 | -5/Cetus | Murdered A7 28726 | -5/Cetus | Extracted ID and sensor layout for unrecognized location from A7's data core 28793 | -5/Cetus | Identified exit to Archives 28936 | -5/Cetus | Entered Archives 28936 | -5/Archives | Accompanied by 26 allies 29028 | -5/Archives | Discovered exit to Factory (range 16) 29122 | -5/Archives | Discovered new exit (range 16) 29142 | -5/Archives | Discovered new exit (range 15) 29185 | -5/Archives | Identified exit to Hub_04(d) 29238 | -5/Archives | Entered Hub_04(d) 29238 | -5/Hub_04(d) | Accompanied by 21 allies 29338 | -5/Hub_04(d) | Retrieved Zion intel report: Main Access 29594 | -5/Hub_04(d) | Retrieved Zion intel report: Unaware Analyses 29601 | -5/Hub_04(d) | Retrieved Zion intel report: Prototype Schematics 29719 | -5/Hub_04(d) | Lost 3 allies 29920 | -5/Hub_04(d) | Lost 10 allies 30048 | -5/Hub_04(d) | Network Hub disabled 30054 | -5/Hub_04(d) | Spotted Lightning 30055 | -5/Hub_04(d) | Spotted Lightning 30068 | -5/Hub_04(d) | Spotted Lightning 30083 | -5/Hub_04(d) | System corruption reached 10% 30085 | -5/Hub_04(d) | Entered Factory 30085 | -4/Factory | Evolved 2 slots: Propulsion x1, Utility x1 30110 | -4/Factory | Lost 7 parts (2p2n1u2w) 30223 | -4/Factory | Retrieved Zion intel report: Branch Access 30223 | -4/Factory | Identified exit to Upper Caves 30227 | -4/Factory | Enhanced Grunt warped into view, answering call for help 30232 | -4/Factory | Enhanced Grunt warped into view, answering call for help 30241 | -4/Factory | Zion Thermal Resupply teleported in 30441 | -4/Factory | Found Prototype Device 30441 | -4/Factory | Identified Exp. Thermal Shield 30487 | -4/Factory | Zion Light squad teleported in 30553 | -4/Factory | Lost 3 parts (1n2u) 30738 | -4/Factory | Lost 3 allies 30821 | -4/Factory | Build established: Scavenger-Gunner 30843 | -4/Factory | Zion Hacker squad teleported in 31028 | -4/Factory | Garrison activated, responded to threat 31102 | -4/Factory | Destroyed 8 combat bots 31163 | -4/Factory | Zion Hacker squad teleported in 31320 | -4/Factory | Zion Defense Resupply teleported in 31347 | -4/Factory | Terminal network hard line cut 31413 | -4/Factory | Lost 8 parts (1p2n3u2w) 31506 | -4/Factory | Core integrity fell below 50% 31531 | -4/Factory | Lost 13 parts (2p6n3u2w) 31629 | -4/Factory | Incoming investigation squad redirected 31684 | -4/Factory | Entered Upper Caves 31693 | -4/Upper Caves | Identified exit to Upper Caves 31702 | -4/Upper Caves | Build established: Mutant 31856 | -4/Upper Caves | Spotted B-86 Titan 31863 | -4/Upper Caves | Destroyed B-86 Titan 32139 | -4/Upper Caves | Build established: Scavenger-Mutant 32400 | -4/Upper Caves | Entered another Upper Caves area 32474 | -4/Upper Caves | Learned Extension trap positions 32510 | -4/Upper Caves | Learned location of Armory (-3) 32542 | -4/Upper Caves | Discovered new exit (range 16) 32553 | -4/Upper Caves | Encountered a Warlord checkpoint 32581 | -4/Upper Caves | Identified exit to Research 33046 | -4/Upper Caves | Build established: Scavenger-Tank 33164 | -4/Upper Caves | System corruption reached 10% 33548 | -4/Upper Caves | Discovered new exit (range 11) 33561 | -4/Upper Caves | Identified exit to Zhirov 33840 | -4/Upper Caves | Entered Zhirov 33840 | -4/Zhirov | Discovered new exit (range 3) 33870 | -4/Zhirov | Met Zhirov 33903 | -4/Zhirov | Learned location of Quarantine (-2) 33903 | -4/Zhirov | Learned location of Testing (-3) 33903 | -4/Zhirov | Learned location of Command (-1) 33912 | -4/Zhirov | Zhirov requested help retrieving the SGEMP Prototype 33936 | -4/Zhirov | Found Alien Artifact 33936 | -4/Zhirov | Identified Integrated Reactor 33936 | -4/Zhirov | Installed Integrated Reactor, increased core energy generation (+10) 34000 | -4/Zhirov | Found Alien Artifact 34059 | -4/Zhirov | Identified exit to Proximity Caves 34062 | -4/Zhirov | Entered Proximity Caves 34135 | -3/Proximity Caves | Attracted the attention of an 0b10 outpost 34230 | -3/Proximity Caves | Spotter reported a threat 34511 | -3/Proximity Caves | Core integrity fell below 20% 34535 | -3/Proximity Caves | Lost 9 parts (2p5n1u1w) 34701 | -3/Proximity Caves | Discovered exit to Research (range 13) 34801 | -3/Proximity Caves | Spotter reported a threat 34809 | -3/Proximity Caves | Entered Research 34809 | -3/Research | Evolved 2 slots: Utility x1, Weapon x1 34966 | -3/Research | Build established: Scout 35177 | -3/Research | Lost 7 parts (1p3n3u) 35310 | -3/Research | Lost 5 parts (1p1n2u1w) 35453 | -3/Research | Spotted B-86 Titan 35467 | -3/Research | Destroyed B-86 Titan 35765 | -3/Research | Build established: Scavenger-Skirmisher 35851 | -3/Research | Fabricated M-30 Cleanser? 36048 | -3/Research | Found Prototype Launcher 36048 | -3/Research | Identified Adv. Micro-nuke Launcher 36108 | -3/Research | Garrison activated, responded to threat 36245 | -3/Research | Spotted B-86 Titan 36275 | -3/Research | Destroyed B-86 Titan 36277 | -3/Research | Terminal network hard line cut 36295 | -3/Research | System corruption reached 10% 36306 | -3/Research | Incoming investigation squad redirected 36323 | -3/Research | Incoming investigation squad redirected 36325 | -3/Research | Lost 11 parts (2p2n4u3w) 36835 | -3/Research | Destroyed 8 combat bots 37002 | -3/Research | Build established: Scavenger-Tank 37059 | -3/Research | First assault squad dispatched 37279 | -3/Research | Incoming assault squad redirected 37301 | -3/Research | System corruption reached 30% 37313 | -3/Research | Lost 5 parts (2n2u1w) 37373 | -3/Research | Identified Transdimensional Reconstructor 37373 | -3/Research | Warped through subspace 37374 | -3/Research | Core integrity fell below 50% 37608 | -3/Research | Incoming assault squad redirected 37609 | -3/Research | Incoming assault squad redirected 37724 | -3/Research | Spotted B-86 Titan 37792 | -3/Research | Lost 6 parts (1p1n2u2w) 37833 | -3/Research | Incoming assault squad redirected 37836 | -3/Research | Destroyed B-86 Titan 37844 | -3/Research | Found Unknown Protection 37844 | -3/Research | Identified Hvy. Reflective Plating 37855 | -3/Research | Garrison activated, responded to threat 37899 | -3/Research | Discovered new exit (range 15) 37910 | -3/Research | Destroyed 8 combat bots 37917 | -3/Research | Identified exit to Research 37919 | -3/Research | Entered another Research area 37919 | -2/Research | Evolved 2 slots: Propulsion x2 37923 | -2/Research | Identified exit to DSF 37923 | -2/Research | Entered DSF 37945 | -2/DSF | Additional patrols routed to DSF 38064 | -2/DSF | Discovered new exit (range 16) 38080 | -2/DSF | Identified exit to Access 38081 | -2/DSF | Entered Access 38081 | -1/Access | Evolved 2 slots: Power x1, Utility x1 38201 | -1/Access | Identified exit to Command 38232 | -1/Access | Zion Light squad teleported in 38310 | -1/Access | Identified exit to Surface 38336 | -1/Access | Retrieved Zion intel report: Active Garrisons 38337 | -1/Access | Zion Hacker squad teleported in 38428 | *** | Escaped! Last Messages --------------- [ 1 : 9J-HA6(p)/Hacker(2) ] [ 2 : XX-LFO(p)/Hacker(3) ] [ 3 : Explosive Resupply ] [ 4 : Explosive Resupply ] [ 5 : BD-BEJ(d)/Demo(1) ] >>\\ZION-DISPATCH-2 [ Target locked, reinforcements inbound... ] 38337_ XX-LFO(p): "Tim% to %wn so%% U%aware syste%%." 38347_ A-15 Conveyor destroyed. 38353_ Acquired 94 matter. 38362_ U-05 Engineer builds a Wall. 38389_ >> Machine Analyzer network decryption results: 38389_ Terminal x1 38411_ Hacking Drone released from Hacking Drone Bay. 38414_ Hacking Drone attempts to hack Terminal... >>Open(Door) Sealed Barrier opened. 38419_ Hacking Drone retrieved by Hacking Drone Bay (no repairs). 38422_ The Access Shell folds into the floor. Map ----- +----------------------------------------------------+ | ?????????????????????????????????????????????????? | | ?????????????????????????????????????????????????? | | ?????????????????????????????????????????????????? | | ?????????????????????????????????????????????????? | | ?????????????????????????????????????????????????? | | ?????????????????????????????????????????????????? | | ?????????????????????????????????????????????????? | | ?????????????????????????????????????????????????? | | ?????????????????????????????????????????????????? | | ?????????????????????????????????????????????????? | | ?????????????????????????????????????????????????? | | ?????????????????????????????????????????????????? | | ????????"????????????????????????????????????????? | | ???????""????????????????????????????????????????? | | ???????""?# ????????????????????????????????????? | | ???????""?# ????????????????????????????????????? | | ???????""?# ????????????????????????????????????? | | ???????T"?# ????????????????????????????????????? | | ???????""?# ??????###???????????????????????????? | | ???????""?# ####### ##########??????????????????? | | ???????""?# """T""" "??????????????????? | | ???????""?# """ """ "????BB????????????? | | ????????"?# "????BB????????????? | | ??????????# pzp "??????????????????? | | ??????????# "" "??????????????????? | | ??????????# z@" "??????????????????? | | ??????????# z p "??????????????????? | | ??????????# "????BB????????????? | | ??????????# "????BB????????????? | | ??????????# "??????????????????? | | ??????????# ####### ##########??????????????????? | | ??????????# #?????###???????????????????????????? | | ??????????# #???????????????????????????????????? | | ??????????# #???????????????????????????????????? | | ??????????# #???????????????????????????????????? | | ??????????# #???????????????????????????????????? | | ??????????# #???########????????????????????????? | | ??????????# #?? + ????????????????????????? | | ?????????## ##? #?????????????????????????? | | ########## # " #?????????????????????????? | | # """ #?????????????????????????? | | + """ #?????????????????????????? | | #####++### # " #?????????????????????????? | | ?? ## ## #?????????????????????????? | | ## #?? #?????????????????????????? | | ## #?? #?????????????????????????? | | ## #???#+#####?????????????????????????? | | ## #???????????????????????????????????? | | """""" ## ???????????????????????????????????? | | """"""" + #???????????????????????????????????? | +----------------------------------------------------+ Best States ------------- Heat Dissipation 127 Coolant Potential 65 Energy Generation 71 Energy Capacity 900 Matter Stores 300 Matter Capacity 300 Sight Range 16 Robot Scan Range 18 Terrain Scan Range 16 Terrain Scan Density 10 Jamming Range 16 Corruption Block 8 Armor Coverage 800 Resistance: KI 30 Resistance: TH 25 Resistance: EM 15 Propulsion Shielding 33 Utility Shielding 90 Weapon Cycling 20 Phase Shifting 10 Evasion (%) 70 Targeting Accuracy 12 Melee Accuracy 8 Target Analysis 8 Recoil Reduction 6 Matter Filtering 50 Authchip Count 3 Item Schematics ----------------- Transmission Jammer | -7/Zion | Archive Phase Cannon | -7/Zion | Archive Adv. Assault Cannon | -7/Zion | Archive Phase Shifter | -7/Zion | Archive Adv. ECM Suite | -7/Zion | Archive Imp. Particle Charger | -7/Zion | Archive Imp. Carbon-fiber Leg | -7/Zion | Archive Neutrino Core | -7/Zion | Archive Wave Gun | -7/Zion | Archive Med. Treads | -7/Zion | Archive IFF Parser | -7/Zion | Archive Adv. Sensor Array | -7/Zion | Archive Flak Gun | -7/Zion | Archive Imp. Medium Armor Plating | -7/Zion | Archive Adv. Melee Analysis Suite | -7/Zion | Archive Combat Drone Bay | -6/Data Miner | Free Lgt. Regenerative Plating | -6/Data Miner | Free Cld. Nuclear Pulse Thruster | -6/Data Miner | Free Imp. Energy Well | -6/Data Miner | Free Plasma Sword | -6/Data Miner | Free Field Propulsion Array | -6/Data Miner | Free Adv. Power Amplifier | -6/Data Miner | Free Matter Neutralizer | -6/Data Miner | Free Imp. Plasma Cutter | -6/Data Miner | Free Antimatter Reactor | -6/Data Miner | Free Lgt. Particle Reactor | -6/Data Miner | Free Mic. Antimatter Reactor | -6/Data Miner | Free Tesla Bomb Launcher | -5/Hub_04(d) | Z-intel Cld. Cesium-ion Thruster | -5/Hub_04(d) | Z-intel Gravity Neutralizer | -5/Hub_04(d) | Z-intel Lgt. Neutrino Core | -5/Hub_04(d) | Z-intel Enh. Fission Core | -5/Hub_04(d) | Z-intel Prc. Energy Filter | -5/Hub_04(d) | Z-intel Enh. Armored Leg | -5/Hub_04(d) | Z-intel Neutron Cannon | -5/Hub_04(d) | Z-intel Ion Burst Cannon | -5/Hub_04(d) | Z-intel Cld. Aerolev Unit | -5/Hub_04(d) | Z-intel Kinetic Spear | -5/Hub_04(d) | Z-intel Assault Drone Bay | -4/Zhirov | Free Exp. Heat Sink | -4/Zhirov | Free Exp. Optical Array | -4/Zhirov | Free Imp. Arc Thrower | -4/Zhirov | Free Robot Schematics ------------------ L-41 Fighter | -7/Factory | Downloaded S-27 Virus | -7/Zion | Archive M-14 Sweeper | -7/Zion | Archive I-36 Angel | -7/Zion | Archive L-61 Swordsman | -7/Zion | Archive A-15 Conveyor | -6/Data Miner | Free E-15 Imp | -6/Data Miner | Free B-60 Warrior | -6/Data Miner | Free M-30 Cleanser | -6/Data Miner | Free G-67 Veteran | -6/Data Miner | Free W-44 Eye | -6/Data Miner | Free Fabricated ------------ B-36 Bruiser | x3 | -7/Factory | Preloaded L-41 Fighter | x3 | -7/Factory | Authchip L-41 Fighter | x3 | -7/Factory | Authchip L-41 Fighter | x3 | -7/Factory | Authchip M-30 Cleanser | x1 | -3/Research | Preloaded Repaired ---------- Lgt. Armored Exoskeleton | 51% | -6/Factory Exp. Targeting Computer | 10% | -6/Factory | Broken Lgt. Armored Exoskeleton | 36% | -5/Factory Alien Tech Used ----------------- Dimensional Node Initializer Integrated Reactor Transdimensional Reconstructor Achievements -------------- None Challenges ------------ None Game ------ Seed SupersonicBeamUnit Manual? 0 Play Time 03:38:24 Cumulative 1892.0 hours Start 2025.07.10 @ 04:05:34 End 2025.07.11 @ 03:43:57 Sessions 3 Manual Loads 0 Difficulty Rogue Special Mode None Game No. 1250 Rogue 1246 Adventurer 4 Explorer 0 Win Type 0 Total 245 Types 183/12/19/10/3/1/4/8/4/1 Lore% 98 Gallery% 94 Achievement% 98 Wizard Run 0 Options --------- Layout 2 ASCII 0 Keyboard 1 Movement Vi Keybinds 0 Fullscreen 0 Font 24/Terminus Map View 59x48 Zoom Use 0% Tactical HUD 1 Map Filters NONE Filters NONE Steam 1 RUN: 03820e72-3980-4ed0-b7fc-787f4ac7e9bc